Workbook

Sheet MainMenu
D9: Services Grid
D10: Click here to view the services grid
D15: Average Hours
D16: Click here to enter or update your affiliate's average hours
D21: Worker Info
D22: Click here to enter or update caseworker info (cost and hours)
D27: Proposed Schedule
D28: Click here to view the Proposed Schedule
D29: =IF(AND(AveHours!D27<>"",'Worker Costs_Hours'!G14=""),"**The Average Hours and Worker Info must be completed first**",IF(AveHours!D27<>"","**The Average Hours must be completed first**",IF('Worker Costs_Hours'!G14="","**The Worker Info must be completed first**",""))) -> **The Average Hours and Worker Info must be completed first**
D33: Schedule
D34: Click here to view and update the schedule
D35: =IF(AND(AveHours!D27<>"",'Worker Costs_Hours'!G14=""),"**The Average Rate and Worker Info must be completed first**",IF(AveHours!D27<>"","**The Average Rate must be completed first**",IF('Worker Costs_Hours'!G14="","**The Worker Info must be completed first**",""))) -> **The Average Rate and Worker Info must be completed first**

Sheet Services (hidden)
C3: Child Services
C4: Service Name | D4: FY 18/19 Service Rates | E4: FY 18/19 Days to Complete | F4: FY 19/20 Service Rates | G4: FY 19/20 Days to Complete | H4: FY 20/21 Service Rates | I4: FY 20/21 Days to Complete | J4: *FY 21/22 Service Rates | K4: *FY 21/22 Days to Complete | L4: *FY 22/23 Service Rates | M4: *FY 22/23 Days to Complete
C5: Adoption Finalization Extension | D5: 1600 | E5: 120 | F5: 1475 | G5: 120 | H5: 1200 | I5: 120 | J5: 1250 | K5: 120 | L5: =J5 -> 1250 | M5: =K5 -> 120
C6: Child Preparation | D6: 2600 | E6: 180 | F6: 2900 | G6: 180 | H6: 2900 | I6: 180 | J6: 2900 | K6: 180 | L6: =J6 -> 2900 | M6: =K6 -> 180
C7: Child Profile | D7: 1900 | E7: 90 | F7: 1800 | G7: 90 | H7: 2100 | I7: 90 | J7: 2100 | K7: 90 | L7: 2100 | M7: 90
C8: Child Profile Addendum | D8: 500 | E8: 90 | F8: 500 | G8: 90 | H8: 1350 | I8: 90 | J8: 1600 | K8: 90 | L8: 1600 | M8: 90
C9: Child Specific Recruitment | D9: 1850 | E9: 180 | F9: 3150 | G9: 180 | H9: 2800 | I9: 180 | J9: 2800 | K9: 180 | L9: 2800 | M9: 180
C10: Finalization | D10: 3200 | E10: 240 | F10: 2950 | G10: 240 | H10: 2250 | I10: 240 | J10: 2400 | K10: 240 | L10: 2400 | M10: 240
C11: Placement | D11: 2700 | E11: n/a | F11: 2700 | G11: n/a | H11: 1950 | I11: n/a | J11: 2300 | K11: n/a | L11: 2300 | M11: n/a
C13: Family Services
C14: Service Name | D14: FY 18/19 Service Rates | E14: FY 18/19 Days to Complete | F14: FY 19/20 Service Rates | G14: FY 19/20 Days to Complete | H14: FY 20/21 Service Rates | I14: FY 20/21 Days to Complete | J14: *FY 21/22 Service Rates | K14: *FY 21/22 Days to Complete | L14: *FY 22/23 Service Rates | M14: *FY 22/23 Days to Complete
C15: Family Profile/Preparation | D15: 2800 | E15: 120 | F15: 2400 | G15: 120 | H15: 2700 | I15: 120 | J15: 2950 | K15: 120 | L15: =J15 -> 2950 | M15: =K15 -> 120
C16: Family Profile/Preparation Addendum | D16: 500 | E16: 120 | F16: 500 | G16: 120 | H16: 1450 | I16: 120 | J16: 1650 | K16: 120 | L16: =J16 -> 1650 | M16: =K16 -> 120
C17: Post-permanency Advocacy/Assessment | D17: 500 | E17: 30 | F17: 500 | G17: 30 | H17: 500 | I17: 30 | J17: 500 | K17: 30 | L17: 500 | M17: 30
C18: Post-permanency Advocacy/Case Management | D18: 500 | E18: 30 | F18: 500 | G18: 30 | H18: 500 | I18: 30 | J18: 500 | K18: 30 | L18: 500 | M18: 30
C19: Post-permanency: Support Group | D19: 250 | E19: 90 | F19: 250 | G19: 90 | H19: 250 | I19: 90 | J19: 250 | K19: 90 | L19: 250 | M19: 90
C20: Post-permanency: Respite | D20: 300 | E20: 30 | F20: 300 | G20: 30 | H20: 300 | I20: 30 | J20: 300 | K20: 30 | L20: 300 | M20: 30
C21: *Tentative

Sheet AveHours (hidden)
J5: Your affiliate's Cost-Time report:
D9: Affiliate | E9: Benchmark Type | F9: Average Time
D10: Your Affiliate | E10: Adoption Finalization Extension
E11: Child Preparation
E12: Child Profile
E13: Child Profile Addendum
E14: Child Specific Recruitment
E15: Family Profile/Preparation or ARFP
E16: Family Profile/Preparation or ARFP Addendum
E17: Finalization
E18: Placement
J19: Post-permanency basis:
J21: To automatically populate the state's average times, choose Statewide. Otherwise, choose Manual entry.
E23: Post-permanency Advocate / Case Management
E24: Post-permanency Case Assessment
E25: Post-permanency: Respite
E26: Post-permanency: Support Group | J26: *Calculated from the CY 2020 Cost-Time Report.
D27: =IF(COUNTA(F10:F26)<13,"**Please complete each of the yellow fields above**","") -> **Please complete each of the yellow fields above**

Sheet Worker Costs_Hours (hidden)
B2: Cumulative Worker Cost and Hours
B3: =IF(ISERROR(MATCH(0,A:A,0)),"","**Please complete all required fields for Worker " & (MATCH(0,A:A,0)-2)/15 & "**") -> **Please complete all required fields for Worker 1**
B4: Adoption Worker Costs | G4: Adoption Worker Hours
B6: Salary | E6: =IF(B3<>"","",SUM(O:O)) ->  | G6: Weeks | J6: =IF(B3<>"","",SUM(T:T)) -> 
B7: Taxes/benefits | D7: =IF(B3<>"","",E7/E6) ->  | E7: =IF(B3<>"","",SUM(P:P)) ->  | G7: Hours/Week | J7: =IF(B3<>"","",SUM(U:U)) -> 
B8: Travel | E8: =IF(B3<>"","",SUM(Q:Q)) ->  | G8: Total Hours | J8: =IF(B3<>"","",SUM(V:V)) -> 
B9: Overhead Rate | D9: =IF(B3<>"","",E9/(SUM(E6:E8))) ->  | E9: =IF(B3<>"","",SUM(R:R)) ->  | G9: Less PTO | H9: (days/yr) | I9: =IF(B3<>"","",SUM(W:W)) ->  | J9: =IF(B3<>"","",SUM(X:X)) -> 
B10: Variance | D10: =IF(B3<>"","",E10/(SUM(E6:E9))) ->  | E10: =IF(B3<>"","",SUM(S:S)) ->  | G10: Less NPH | H10: (hrs/week) | I10: =IF(B3<>"","",SUM(Y:Y)) ->  | J10: =IF(B3<>"","",SUM(Z:Z)) -> 
B11: Total Cost | E11: =SUM(E6:E10) -> 0 | G11: Total Available Hours | J11: =IF(OR(J6="",J7=""),"",SUM(J8:J10)) ->  | K11: per Year
J12: =IF(J11="","",J11/12) ->  | K12: per Month
F14: Minimum Desired Rate per Hour: | G14: =IF(OR(E6="",D7="",E8="",D9="",D10="",J6="",J7="",I9="",I10=""),"",E11/J11) -> 
O16: Salary | P16: Taxes/Ben | Q16: Travel | R16: Admin | S16: Variance | T16: Weeks | U16: Hrs/Week | V16: Total Hrs | W16: PTO days/yr | X16: PTO Total | Y16: NPH hrs/wk | Z16: NPH Total
A17: =IF(LEFT(B19,2)="**",0,1) -> 0 | C17: Worker | O17: =E22 -> 0 | P17: =E23 -> 0 | Q17: =E24 -> 4100 | R17: =E25 -> 676.5 | S17: =E26 -> 0 | T17: =J22 -> 52 | U17: =J23 -> 0 | V17: =J24 -> 0 | W17: =I25 -> 0 | X17: =J25 -> 0 | Y17: =I26 -> 0 | Z17: =J26 -> 0
B18: Type: | C18: Worker | E18: ="Worker "&COUNTA($A$17:A17)&" of "&COUNTA(A:A) -> Worker 1 of 1 | H18: Name: | I18: [optional]
B19: =IF(G30="","**Please enter a value (""0"" if not applicable) in each of the required yellow fields**",IF(C18="","**Please make a selection in the Type drop-down field**","")) -> **Please enter a value ("0" if not applicable) in each of the required yellow fields**
B20: Adoption Worker Costs | G20: Adoption Worker Hours
B22: Salary | D22: Show Calculator | F22: per year | G22: Weeks | J22: 52
B23: Taxes/benefits | D23: 0 | E23: =E22 * D23 -> 0 | G23: Hours/Week
B24: Travel | E24: 4100 | G24: Total Hours | J24: =+J23*J22 -> 0
B25: Overhead Rate | D25: 0.165 | E25: =SUM(E22:E24) * D25 -> 676.5 | G25: Less PTO | H25: (days/yr) | J25: =-I25*8 -> 0
B26: Variance | D26: 0 | E26: =SUM(E22:E25) * D26 -> 0 | G26: Less NPH | H26: (hrs/week) | J26: =-48*I26 -> 0
B27: Total Cost | E27: =SUM(E22:E26) -> 4776.5 | G27: Total Available Hours | J27: =IF(OR(J22="",J23=""),"",SUM(J24:J26)) ->  | K27: per Year
J28: =IF(J27="","",J27/12) ->  | K28: per Month
F30: Minimum Desired Rate per Hour: | G30: =IF(AND(C18="Worker",OR(E22="",D23="",E23="",E24="",D25="",E25="",D26="",E26="",J22="",J23="",I25="",I26="")),"", IF(AND(C18="Consultant",OR(E22="",J22="",J23="",I26="",D25="",E25="")),"",E27/J27)) -> 

Sheet Proposed Schedule (hidden)
G3: Statewide | J3: Affiliate
B4: Service | D4: Months | E4: Rate | G4: Hours | I4: Hours Per Month | J4: Hours | K4: Hours Per Month
B5: =Services!$C$5 -> Adoption Finalization Extension | D5: =IF(ISERROR(INDEX(Services!$I$5:$I$20,MATCH($B5,Services!$C$5:$C$20,0))/30),"n/a",INDEX(Services!$I$5:$I$20,MATCH($B5,Services!$C$5:$C$20,0))/30) -> 4 | E5: =INDEX(Services!$H$5:$H$20,MATCH($B$5,Services!$C$5:$C$20,0)) -> 1200 | G5: =References!O5 -> 20.04682274 | I5: =IF(D5=0,0,IF(D5="n/a","n/a",G5/D5)) -> 5.011705686 | J5: =AveHours!F10 -> 0 | K5: =IF(D5=0,0,IF(D5="n/a","n/a",J5/D5)) -> 0
B6: =Services!$C$6 -> Child Preparation | D6: =IF(ISERROR(INDEX(Services!$I$5:$I$20,MATCH($B6,Services!$C$5:$C$20,0))/30),"n/a",INDEX(Services!$I$5:$I$20,MATCH($B6,Services!$C$5:$C$20,0))/30) -> 6 | E6: =INDEX(Services!$H$5:$H$20,MATCH($B$6,Services!$C$5:$C$20,0)) -> 2900 | G6: =References!O6 -> 42.70239223 | I6: 7.117065372 | J6: =AveHours!F11 -> 0 | K6: 0
B7: =Services!$C$7 -> Child Profile | D7: =IF(ISERROR(INDEX(Services!$I$5:$I$20,MATCH($B7,Services!$C$5:$C$20,0))/30),"n/a",INDEX(Services!$I$5:$I$20,MATCH($B7,Services!$C$5:$C$20,0))/30) -> 3 | E7: =INDEX(Services!$H$5:$H$20,MATCH($B$7,Services!$C$5:$C$20,0)) -> 2100 | G7: =References!O7 -> 35.36218595 | I7: 11.78739532 | J7: =AveHours!F12 -> 0 | K7: 0
B8: =Services!$C$8 -> Child Profile Addendum | D8: =IF(ISERROR(INDEX(Services!$I$5:$I$20,MATCH($B8,Services!$C$5:$C$20,0))/30),"n/a",INDEX(Services!$I$5:$I$20,MATCH($B8,Services!$C$5:$C$20,0))/30) -> 3 | E8: =INDEX(Services!$H$5:$H$20,MATCH($B$8,Services!$C$5:$C$20,0)) -> 1350 | G8: =References!O8 -> 26.71051033 | I8: 8.903503443 | J8: =AveHours!F13 -> 0 | K8: 0
B9: =Services!$C$9 -> Child Specific Recruitment | D9: =IF(ISERROR(INDEX(Services!$I$5:$I$20,MATCH($B9,Services!$C$5:$C$20,0))/30),"n/a",INDEX(Services!$I$5:$I$20,MATCH($B9,Services!$C$5:$C$20,0))/30) -> 6 | E9: =INDEX(Services!$H$5:$H$20,MATCH($B$9,Services!$C$5:$C$20,0)) -> 2800 | G9: =References!O9 -> 43.0072095 | I9: 7.16786825 | J9: =AveHours!F14 -> 0 | K9: 0
B10: =Services!$C$10 -> Finalization | D10: =IF(ISERROR(INDEX(Services!$I$5:$I$20,MATCH($B10,Services!$C$5:$C$20,0))/30),"n/a",INDEX(Services!$I$5:$I$20,MATCH($B10,Services!$C$5:$C$20,0))/30) -> 8 | E10: =INDEX(Services!$H$5:$H$20,MATCH($B$10,Services!$C$5:$C$20,0)) -> 2250 | G10: =References!O10 -> 48.87682181 | I10: 6.109602727 | J10: =AveHours!F17 -> 0 | K10: 0
B11: =Services!$C$11 -> Placement | D11: =IF(ISERROR(INDEX(Services!$I$5:$I$20,MATCH($B11,Services!$C$5:$C$20,0))/30),"n/a",INDEX(Services!$I$5:$I$20,MATCH($B11,Services!$C$5:$C$20,0))/30) -> n/a | E11: =INDEX(Services!$H$5:$H$20,MATCH($B$11,Services!$C$5:$C$20,0)) -> 1950 | G11: =References!O11 -> 27.37468354 | I11: n/a | J11: =AveHours!F18 -> 0 | K11: n/a
B12: =Services!$C$15 -> Family Profile/Preparation | D12: =IF(ISERROR(INDEX(Services!$I$5:$I$20,MATCH($B12,Services!$C$5:$C$20,0))/30),"n/a",INDEX(Services!$I$5:$I$20,MATCH($B12,Services!$C$5:$C$20,0))/30) -> 4 | E12: =INDEX(Services!$H$5:$H$20,MATCH($B$12,Services!$C$5:$C$20,0)) -> 2700 | G12: =References!O12 -> 38.65992509 | I12: 9.664981273 | J12: =AveHours!F15 -> 0 | K12: 0
B13: =Services!$C$16 -> Family Profile/Preparation Addendum | D13: =IF(ISERROR(INDEX(Services!$I$5:$I$20,MATCH($B13,Services!$C$5:$C$20,0))/30),"n/a",INDEX(Services!$I$5:$I$20,MATCH($B13,Services!$C$5:$C$20,0))/30) -> 4 | E13: =INDEX(Services!$H$5:$H$20,MATCH($B$13,Services!$C$5:$C$20,0)) -> 1450 | G13: =References!O13 -> 37.56203008 | I13: 9.390507519 | J13: =AveHours!F16 -> 0 | K13: 0
B14: =Services!$C$17 -> Post-permanency Advocacy/Assessment | D14: =IF(ISERROR(INDEX(Services!$I$5:$I$20,MATCH($B14,Services!$C$5:$C$20,0))/30),"n/a",INDEX(Services!$I$5:$I$20,MATCH($B14,Services!$C$5:$C$20,0))/30) -> 1 | E14: =INDEX(Services!$H$5:$H$20,MATCH($B$14,Services!$C$5:$C$20,0)) -> 500 | G14: =References!R6 -> 9.081003289 | I14: 9.081003289 | J14: =AveHours!F24 -> 0 | K14: 0
B15: =Services!$C$18 -> Post-permanency Advocacy/Case Management | D15: =IF(ISERROR(INDEX(Services!$I$5:$I$20,MATCH($B15,Services!$C$5:$C$20,0))/30),"n/a",INDEX(Services!$I$5:$I$20,MATCH($B15,Services!$C$5:$C$20,0))/30) -> 1 | E15: =INDEX(Services!$H$5:$H$20,MATCH($B$15,Services!$C$5:$C$20,0)) -> 500 | G15: =References!R5 -> 26.9063786 | I15: 26.9063786 | J15: =AveHours!F23 -> 0 | K15: 0
B16: =Services!$C$19 -> Post-permanency: Support Group | D16: =IF(ISERROR(INDEX(Services!$I$5:$I$20,MATCH($B16,Services!$C$5:$C$20,0))/30),"n/a",INDEX(Services!$I$5:$I$20,MATCH($B16,Services!$C$5:$C$20,0))/30) -> 3 | E16: =INDEX(Services!$H$5:$H$20,MATCH($B$16,Services!$C$5:$C$20,0)) -> 250 | G16: =References!R8 -> 9.796153846 | I16: 3.265384615 | J16: =AveHours!F26 -> 0 | K16: 0
B17: =Services!$C$20 -> Post-permanency: Respite | D17: =IF(ISERROR(INDEX(Services!$I$5:$I$20,MATCH($B17,Services!$C$5:$C$20,0))/30),"n/a",INDEX(Services!$I$5:$I$20,MATCH($B17,Services!$C$5:$C$20,0))/30) -> 1 | E17: =INDEX(Services!$H$5:$H$20,MATCH($B$17,Services!$C$5:$C$20,0)) -> 300 | G17: =References!R7 -> 7.891629297 | I17: 7.891629297 | J17: =AveHours!F25 -> 0 | K17: 0 | T17: Total Available Hours: | U17: ='Worker Costs_Hours'!J11 ->  | W17: Total Earnings: | X17: =T37 -> 85900
T18: Scheduled Hours: | U18: =SUM(E37:S37) -> 1758.034387 | W18: Worker Costs: | X18: ='Worker Costs_Hours'!E11 -> 0
L19: ANNUAL WORKLOAD | T19: Remaining Available Hours: | U19: =IF(OR(U17="",U17=0),"",U17-U18) ->  | W19: Profit/Loss: | X19: =X17-X18 -> 85900
L20: Affiliate Hours
C21: # of Cases | E21: 2020-07-01 | G21: =IF(OR(E21=""),"",EDATE(E21,1)) -> 2020-08-01 | I21: =IF(G21="","",EDATE(G21,1)) -> 2020-09-01 | J21: =IF(I21="","",EDATE(I21,1)) -> 2020-10-01 | K21: 2020-11-01 | L21: 2020-12-01 | M21: 2021-01-01 | N21: 2021-02-01 | O21: 2021-03-01 | Q21: =IF(O21="","",EDATE(O21,1)) -> 2021-04-01 | R21: =IF(Q21="","",EDATE(Q21,1)) -> 2021-05-01 | S21: =IF(R21="","",EDATE(R21,1)) -> 2021-06-01 | T21: Earnings | U21: Total Cost based on Worker Rate | V21: Profit/Loss based on Worker Rate | W21: Est. Hours | X21: Total Hours | Y21: Hrs per Unit of Service
C22: ="Total = "&SUM(C23:C36) -> Total = 60 | U22: =IF('Worker Costs_Hours'!G14="","??","("&DOLLAR('Worker Costs_Hours'!G14)&")") -> ??
B23: Adoption Finalization Extension | C23: 5 | E23: 10 | G23: 10 | I23: 10 | J23: 20 | K23: 20 | L23: 30 | M23: 30 | N23: 20 | O23: 20 | Q23: 10 | R23: 10 | S23: 10 | T23: =IF(OR(B23="",B23="**Select a service**",C23="",C23=0),0,C23*INDEX($E$5:$E$17,MATCH(B23,$B$5:$B$17,0))) -> 6000 | U23: =IF('Worker Costs_Hours'!G14=""," ",IF(OR(B23="",B23="**Select a service**",C23="",C23=0),0,SUM(E23:S23)*'Worker Costs_Hours'!G14)) ->  | V23: =IF($U$22="??"," ",T23-U23) ->  | W23: =IF(OR(B23="",B23="**Select a service**"),0,IF(INDEX($J$5:$J$17,MATCH(B23,$B$5:$B$17,0))=""," ",IF($L$20="Affiliate Hours",C23*INDEX($J$5:$J$17,MATCH(B23,$B$5:$B$17,0)),C23*INDEX($G$5:$G$17,MATCH(B23,$B$5:$B$17,0))))) -> 0 | X23: =SUM(E23:S23) -> 200 | Y23: =IF(OR(C23=0,C23=""),0,X23/C23) -> 40
B24: Child Preparation | C24: 5 | G24: 13.33333333 | I24: 13.33333333 | J24: 13.33333333 | K24: 20 | L24: 26.66666667 | M24: 33.33333333 | N24: 20 | O24: 20 | Q24: 20 | R24: 13.33333333 | S24: 6.666666667 | T24: 14500 | U24: =IF('Worker Costs_Hours'!G14=""," ",IF(OR(B24="",B24="**Select a service**",C24="",C24=0),0,SUM(E24:S24)*'Worker Costs_Hours'!G14)) ->  | W24: 0 | X24: 200 | Y24: 40
B25: Child Profile | C25: 5 | E25: 26.66666667 | G25: 26.66666667 | I25: 26.66666667 | K25: 13.33333333 | L25: 13.33333333 | M25: 13.33333333 | Q25: 26.66666667 | R25: 26.66666667 | S25: 26.66666667 | T25: 10500 | U25: =IF('Worker Costs_Hours'!G14=""," ",IF(OR(B25="",B25="**Select a service**",C25="",C25=0),0,SUM(E25:S25)*'Worker Costs_Hours'!G14)) ->  | W25: 0 | X25: 200 | Y25: 40
B26: Child Profile Addendum | C26: 5 | E26: 13.33333333 | G26: 13.33333333 | I26: 26.66666667 | J26: 13.33333333 | K26: 26.66666667 | L26: 13.33333333 | M26: 13.33333333 | O26: 13.33333333 | Q26: 26.66666667 | R26: 26.66666667 | S26: 13.33333333 | T26: 6750 | U26: =IF('Worker Costs_Hours'!G14=""," ",IF(OR(B26="",B26="**Select a service**",C26="",C26=0),0,SUM(E26:S26)*'Worker Costs_Hours'!G14)) ->  | W26: 0 | X26: 200 | Y26: 40
B27: Child Specific Recruitment | C27: 5 | E27: 6.666666667 | G27: 13.33333333 | I27: 20 | J27: 20 | K27: 20 | L27: 20 | M27: 26.66666667 | N27: 20 | O27: 13.33333333 | Q27: 13.33333333 | R27: 13.33333333 | S27: 13.33333333 | T27: 14000 | U27: =IF('Worker Costs_Hours'!G14=""," ",IF(OR(B27="",B27="**Select a service**",C27="",C27=0),0,SUM(E27:S27)*'Worker Costs_Hours'!G14)) ->  | W27: 0 | X27: 200 | Y27: 40
B28: Finalization | C28: 4 | G28: 10 | I28: 10 | J28: 15 | K28: 20 | L28: 20 | M28: 20 | N28: 20 | O28: 20 | Q28: 10 | R28: 10 | S28: 5 | T28: 9000 | U28: =IF('Worker Costs_Hours'!G14=""," ",IF(OR(B28="",B28="**Select a service**",C28="",C28=0),0,SUM(E28:S28)*'Worker Costs_Hours'!G14)) ->  | W28: 0 | X28: 160 | Y28: 40
A29: x | B29: Placement | T29: 0 | U29: =IF('Worker Costs_Hours'!G14=""," ",IF(OR(B29="",B29="**Select a service**",C29="",C29=0),0,SUM(E29:S29)*'Worker Costs_Hours'!G14)) ->  | W29: 0 | X29: 0 | Y29: 0
B30: Family Profile/Preparation | C30: 4 | E30: 20 | G30: 20 | I30: 20 | J30: 20 | O30: 20 | Q30: 20 | R30: 20 | S30: 20 | T30: 10800 | U30: =IF('Worker Costs_Hours'!G14=""," ",IF(OR(B30="",B30="**Select a service**",C30="",C30=0),0,SUM(E30:S30)*'Worker Costs_Hours'!G14)) ->  | W30: 0 | X30: 160 | Y30: 40
B31: Family Profile/Preparation Addendum | C31: 4 | E31: 20 | G31: 20 | I31: 20 | J31: 20 | N31: 10 | O31: 20 | Q31: 20 | R31: 20 | S31: 10 | T31: 5800 | U31: =IF('Worker Costs_Hours'!G14=""," ",IF(OR(B31="",B31="**Select a service**",C31="",C31=0),0,SUM(E31:S31)*'Worker Costs_Hours'!G14)) ->  | W31: 0 | X31: 160 | Y31: 40
B32: Post-permanency Advocacy/Assessment | C32: 6 | E32: 9.081003289 | G32: 9.081003289 | J32: 9.081003289 | L32: 9.081003289 | O32: 9.081003289 | S32: 9.081003289 | T32: 3000 | U32: =IF('Worker Costs_Hours'!G14=""," ",IF(OR(B32="",B32="**Select a service**",C32="",C32=0),0,SUM(E32:S32)*'Worker Costs_Hours'!G14)) ->  | W32: 0 | X32: 54.48601974 | Y32: 9.081003289
B33: Post-permanency Advocacy/Case Management | C33: 4 | E33: 26.9063786 | N33: 53.8127572 | S33: 26.9063786 | T33: 2000 | U33: =IF('Worker Costs_Hours'!G14=""," ",IF(OR(B33="",B33="**Select a service**",C33="",C33=0),0,SUM(E33:S33)*'Worker Costs_Hours'!G14)) ->  | W33: 0 | X33: 107.6255144 | Y33: 26.9063786
B34: Post-permanency: Support Group | C34: 7 | E34: 3.265384615 | G34: 3.265384615 | I34: 3.265384615 | J34: 6.530769231 | K34: 13.06153846 | L34: 13.06153846 | M34: 9.796153846 | N34: 3.265384615 | O34: 3.265384615 | Q34: 3.265384615 | R34: 3.265384615 | S34: 3.265384615 | T34: 1750 | U34: =IF('Worker Costs_Hours'!G14=""," ",IF(OR(B34="",B34="**Select a service**",C34="",C34=0),0,SUM(E34:S34)*'Worker Costs_Hours'!G14)) ->  | W34: 0 | X34: 68.57307692 | Y34: 9.796153846
B35: Post-permanency: Respite | C35: 6 | E35: 7.891629297 | G35: 7.891629297 | J35: 7.891629297 | K35: 15.78325859 | O35: 7.891629297 | T35: 1800 | U35: =IF('Worker Costs_Hours'!G14=""," ",IF(OR(B35="",B35="**Select a service**",C35="",C35=0),0,SUM(E35:S35)*'Worker Costs_Hours'!G14)) ->  | W35: 0 | X35: 47.34977578 | Y35: 7.891629297
B36: *****
E37: =SUM(E23:F36) -> 143.8110625 | G37: =SUM(G23:H36) -> 146.9046839 | I37: =SUM(I23:I36) -> 149.9320513 | J37: 145.1700685 | K37: 148.8447971 | L37: 145.4758751 | M37: 146.4628205 | N37: 147.0781418 | O37: =SUM(O23:P36) -> 146.9046839 | Q37: =SUM(Q23:Q36) -> 149.9320513 | R37: 143.2653846 | S37: 144.2527665 | T37: 85900 | U37: 0 | V37: 0 | W37: 0 | X37: 1758.034387 | Y37: =SUM(Y23:Z35) -> 373.675165
L38: HOURS | M38: ="(Total = "&TEXT(SUM(E37:S37),"#,##0.0")&")" -> (Total = 1,758.0)
E39: =IF('Worker Costs_Hours'!G14="","",IF(COUNTIF(E37:S37,">"&'Worker Costs_Hours'!J12)>0,"**The monthly hours available ("&TEXT('Worker Costs_Hours'!J12,"#,##0.00")&") has been exceeded**","")) -> 
K40: QUARTERLY WORKLOAD
L41: =L20 -> Affiliate Hours
J42: * # of Cases = ([Hours in quarter] ÷ [Hours in year]) x [# of Cases in year]
B43: QUARTER 1 | C43: # of Cases* | E43: =E21 -> 2020-07-01 | G43: =G21 -> 2020-08-01 | I43: =I21 -> 2020-09-01 | J43: Earnings | K43: Total Cost based on Worker Rate | L43: Profit/Loss based on Worker Rate | N43: QUARTER 2 | R43: # of Cases* | S43: =J21 -> 2020-10-01 | T43: =K21 -> 2020-11-01 | U43: =L21 -> 2020-12-01 | V43: Earnings | W43: Total Cost based on Worker Rate | X43: Profit/Loss based on Worker Rate
C44: ="Total = "&TEXT(SUM(C45:C58),"0.00") -> Total = 15.25 | K44: =IF('Worker Costs_Hours'!G14="","??","($"&TEXT('Worker Costs_Hours'!G14,"0.##")&")") -> ?? | R44: ="Total = "&TEXT(SUM(R45:R58),"0.00") -> Total = 17.46 | W44: =IF('Worker Costs_Hours'!G14="","??","("&DOLLAR('Worker Costs_Hours'!G14)&")") -> ??
A45: =A23 -> 0 | B45: =IF(B23="**Select a service**","",B23) -> Adoption Finalization Extension | C45: =IF(OR(C23="",C23=0,SUM(E23:S23)=0),"",(SUM(E45:I45)/SUM(E23:S23))*C23) -> 0.75 | E45: =IF(OR(A45="x",A45="y"),"",E23) -> 10 | G45: =IF(OR(A45="x",A45="y"),"",G23) -> 10 | I45: =IF(OR(A45="x",A45="y"),"",I23) -> 10 | J45: =IF(OR(A45="x",A45="y"),"",IF(OR(B45="",B45="**Select a service**",C45="",C45=0),0,C45*INDEX($E$5:$E$17,MATCH(B45,$B$5:$B$17,0)))) -> 900 | K45: =IF(OR(A45="x",A45="y"),"",IF($K$44="??"," ",IF(OR(B45="",B45="**Select a service**",C45="",C45=0),0,SUM(E45:I45)*'Worker Costs_Hours'!G14))) ->  | L45: =IF(OR(A45="x",A45="y"),"",IF($U$22="??"," ",J45-K45)) ->  | M45: =A23 -> 0 | N45: =IF(B23="**Select a service**","",B23) -> Adoption Finalization Extension | R45: =IF(OR(C23="",C23=0,SUM(E23:S23)=0),"",(SUM(S45:U45)/SUM(E23:S23))*C23) -> 1.75 | S45: =IF(OR(M45="x",M45="y"),"",J23) -> 20 | T45: =IF(OR(M45="x",M45="y"),"",K23) -> 20 | U45: =IF(OR(M45="x",M45="y"),"",L23) -> 30 | V45: =IF(OR(M45="x",M45="y"),"",IF(OR(N45="",N45="**Select a service**",R45="",R45=0),0,R45*INDEX($E$5:$E$17,MATCH(N45,$B$5:$B$17,0)))) -> 2100 | W45: =IF(OR(M45="x",M45="y"),"",IF($W$44="??"," ",IF(OR(N45="",N45="**Select a service**",R45="",R45=0),0,SUM(S45:U45)*'Worker Costs_Hours'!G14))) ->  | X45: =IF(OR(M45="x",M45="y"),"",IF($U$22="??"," ",V45-W45)) -> 
A46: 0 | B46: Child Preparation | C46: 0.6666666667 | E46: 0 | G46: 13.33333333 | I46: 13.33333333 | J46: 1933.333333 | K46: =IF(OR(A46="x",A46="y"),"",IF($K$44="??"," ",IF(OR(B46="",B46="**Select a service**",C46="",C46=0),0,SUM(E46:I46)*'Worker Costs_Hours'!G14))) ->  | M46: 0 | N46: Child Preparation | R46: 1.5 | S46: 13.33333333 | T46: 20 | U46: 26.66666667 | V46: 4350 | W46: =IF(OR(M46="x",M46="y"),"",IF($W$44="??"," ",IF(OR(N46="",N46="**Select a service**",R46="",R46=0),0,SUM(S46:U46)*'Worker Costs_Hours'!G14))) -> 
A47: 0 | B47: Child Profile | C47: 2 | E47: 26.66666667 | G47: 26.66666667 | I47: 26.66666667 | J47: 4200 | K47: =IF(OR(A47="x",A47="y"),"",IF($K$44="??"," ",IF(OR(B47="",B47="**Select a service**",C47="",C47=0),0,SUM(E47:I47)*'Worker Costs_Hours'!G14))) ->  | M47: 0 | N47: Child Profile | R47: 0.6666666667 | S47: 0 | T47: 13.33333333 | U47: 13.33333333 | V47: 1400 | W47: =IF(OR(M47="x",M47="y"),"",IF($W$44="??"," ",IF(OR(N47="",N47="**Select a service**",R47="",R47=0),0,SUM(S47:U47)*'Worker Costs_Hours'!G14))) -> 
A48: 0 | B48: Child Profile Addendum | C48: 1.333333333 | E48: 13.33333333 | G48: 13.33333333 | I48: 26.66666667 | J48: 1800 | K48: =IF(OR(A48="x",A48="y"),"",IF($K$44="??"," ",IF(OR(B48="",B48="**Select a service**",C48="",C48=0),0,SUM(E48:I48)*'Worker Costs_Hours'!G14))) ->  | M48: 0 | N48: Child Profile Addendum | R48: 1.333333333 | S48: 13.33333333 | T48: 26.66666667 | U48: 13.33333333 | V48: 1800 | W48: =IF(OR(M48="x",M48="y"),"",IF($W$44="??"," ",IF(OR(N48="",N48="**Select a service**",R48="",R48=0),0,SUM(S48:U48)*'Worker Costs_Hours'!G14))) -> 
A49: 0 | B49: Child Specific Recruitment | C49: 1 | E49: 6.666666667 | G49: 13.33333333 | I49: 20 | J49: 2800 | K49: =IF(OR(A49="x",A49="y"),"",IF($K$44="??"," ",IF(OR(B49="",B49="**Select a service**",C49="",C49=0),0,SUM(E49:I49)*'Worker Costs_Hours'!G14))) ->  | M49: 0 | N49: Child Specific Recruitment | R49: 1.5 | S49: 20 | T49: 20 | U49: 20 | V49: 4200 | W49: =IF(OR(M49="x",M49="y"),"",IF($W$44="??"," ",IF(OR(N49="",N49="**Select a service**",R49="",R49=0),0,SUM(S49:U49)*'Worker Costs_Hours'!G14))) -> 
A50: 0 | B50: Finalization | C50: 0.5 | E50: 0 | G50: 10 | I50: 10 | J50: 1125 | K50: =IF(OR(A50="x",A50="y"),"",IF($K$44="??"," ",IF(OR(B50="",B50="**Select a service**",C50="",C50=0),0,SUM(E50:I50)*'Worker Costs_Hours'!G14))) ->  | M50: 0 | N50: Finalization | R50: 1.375 | S50: 15 | T50: 20 | U50: 20 | V50: 3093.75 | W50: =IF(OR(M50="x",M50="y"),"",IF($W$44="??"," ",IF(OR(N50="",N50="**Select a service**",R50="",R50=0),0,SUM(S50:U50)*'Worker Costs_Hours'!G14))) -> 
A51: x | B51: Placement | K51: =IF(OR(A51="x",A51="y"),"",IF($K$44="??"," ",IF(OR(B51="",B51="**Select a service**",C51="",C51=0),0,SUM(E51:I51)*'Worker Costs_Hours'!G14))) ->  | M51: x | N51: Placement | W51: =IF(OR(M51="x",M51="y"),"",IF($W$44="??"," ",IF(OR(N51="",N51="**Select a service**",R51="",R51=0),0,SUM(S51:U51)*'Worker Costs_Hours'!G14))) -> 
A52: 0 | B52: Family Profile/Preparation | C52: 1.5 | E52: 20 | G52: 20 | I52: 20 | J52: 4050 | K52: =IF(OR(A52="x",A52="y"),"",IF($K$44="??"," ",IF(OR(B52="",B52="**Select a service**",C52="",C52=0),0,SUM(E52:I52)*'Worker Costs_Hours'!G14))) ->  | M52: 0 | N52: Family Profile/Preparation | R52: 0.5 | S52: 20 | T52: 0 | U52: 0 | V52: 1350 | W52: =IF(OR(M52="x",M52="y"),"",IF($W$44="??"," ",IF(OR(N52="",N52="**Select a service**",R52="",R52=0),0,SUM(S52:U52)*'Worker Costs_Hours'!G14))) -> 
A53: 0 | B53: Family Profile/Preparation Addendum | C53: 1.5 | E53: 20 | G53: 20 | I53: 20 | J53: 2175 | K53: =IF(OR(A53="x",A53="y"),"",IF($K$44="??"," ",IF(OR(B53="",B53="**Select a service**",C53="",C53=0),0,SUM(E53:I53)*'Worker Costs_Hours'!G14))) ->  | M53: 0 | N53: Family Profile/Preparation Addendum | R53: 0.5 | S53: 20 | T53: 0 | U53: 0 | V53: 725 | W53: =IF(OR(M53="x",M53="y"),"",IF($W$44="??"," ",IF(OR(N53="",N53="**Select a service**",R53="",R53=0),0,SUM(S53:U53)*'Worker Costs_Hours'!G14))) -> 
A54: 0 | B54: Post-permanency Advocacy/Assessment | C54: 2 | E54: 9.081003289 | G54: 9.081003289 | I54: 0 | J54: 1000 | K54: =IF(OR(A54="x",A54="y"),"",IF($K$44="??"," ",IF(OR(B54="",B54="**Select a service**",C54="",C54=0),0,SUM(E54:I54)*'Worker Costs_Hours'!G14))) ->  | M54: 0 | N54: Post-permanency Advocacy/Assessment | R54: 2 | S54: 9.081003289 | T54: 0 | U54: 9.081003289 | V54: 1000 | W54: =IF(OR(M54="x",M54="y"),"",IF($W$44="??"," ",IF(OR(N54="",N54="**Select a service**",R54="",R54=0),0,SUM(S54:U54)*'Worker Costs_Hours'!G14))) -> 
A55: 0 | B55: Post-permanency Advocacy/Case Management | C55: 1 | E55: 26.9063786 | G55: 0 | I55: 0 | J55: 500 | K55: =IF(OR(A55="x",A55="y"),"",IF($K$44="??"," ",IF(OR(B55="",B55="**Select a service**",C55="",C55=0),0,SUM(E55:I55)*'Worker Costs_Hours'!G14))) ->  | M55: 0 | N55: Post-permanency Advocacy/Case Management | R55: 0 | S55: 0 | T55: 0 | U55: 0 | V55: 0 | W55: =IF(OR(M55="x",M55="y"),"",IF($W$44="??"," ",IF(OR(N55="",N55="**Select a service**",R55="",R55=0),0,SUM(S55:U55)*'Worker Costs_Hours'!G14))) -> 
A56: 0 | B56: Post-permanency: Support Group | C56: 1 | E56: 3.265384615 | G56: 3.265384615 | I56: 3.265384615 | J56: 250 | K56: =IF(OR(A56="x",A56="y"),"",IF($K$44="??"," ",IF(OR(B56="",B56="**Select a service**",C56="",C56=0),0,SUM(E56:I56)*'Worker Costs_Hours'!G14))) ->  | M56: 0 | N56: Post-permanency: Support Group | R56: 3.333333333 | S56: 6.530769231 | T56: 13.06153846 | U56: 13.06153846 | V56: 833.3333333 | W56: =IF(OR(M56="x",M56="y"),"",IF($W$44="??"," ",IF(OR(N56="",N56="**Select a service**",R56="",R56=0),0,SUM(S56:U56)*'Worker Costs_Hours'!G14))) -> 
A57: 0 | B57: Post-permanency: Respite | C57: 2 | E57: 7.891629297 | G57: 7.891629297 | I57: 0 | J57: 600 | K57: =IF(OR(A57="x",A57="y"),"",IF($K$44="??"," ",IF(OR(B57="",B57="**Select a service**",C57="",C57=0),0,SUM(E57:I57)*'Worker Costs_Hours'!G14))) ->  | M57: 0 | N57: Post-permanency: Respite | R57: 3 | S57: 7.891629297 | T57: 15.78325859 | U57: 0 | V57: 900 | W57: =IF(OR(M57="x",M57="y"),"",IF($W$44="??"," ",IF(OR(N57="",N57="**Select a service**",R57="",R57=0),0,SUM(S57:U57)*'Worker Costs_Hours'!G14))) -> 
B58: * | N58: **
E59: =SUM(E45:E58) -> 143.8110625 | G59: =SUM(G45:G58) -> 146.9046839 | I59: =SUM(I45:I58) -> 149.9320513 | J59: 21333.33333 | K59: 0 | L59: 0 | S59: =SUM(S45:S58) -> 145.1700685 | T59: 148.8447971 | U59: 145.4758751 | V59: 21752.08333 | W59: 0 | X59: =SUM(X45:X58) -> 0
B62: QUARTER 3 | C62: # of Cases* | E62: =M21 -> 2021-01-01 | G62: =N21 -> 2021-02-01 | I62: =O21 -> 2021-03-01 | J62: Earnings | K62: Total Cost based on Worker Rate | L62: Profit/Loss based on Worker Rate | N62: QUARTER 4 | R62: # of Cases* | S62: =Q21 -> 2021-04-01 | T62: =R21 -> 2021-05-01 | U62: =S21 -> 2021-06-01 | V62: Earnings | W62: Total Cost based on Worker Rate | X62: Profit/Loss based on Worker Rate
C63: ="Total = "&TEXT(SUM(D64:D77),"0.00") -> Total = 0.00 | K63: =IF('Worker Costs_Hours'!G14="","??","("&DOLLAR('Worker Costs_Hours'!G14)&")") -> ?? | R63: ="Total = "&TEXT(SUM(R64:R77),"0.00") -> Total = 12.79 | W63: =IF('Worker Costs_Hours'!G14="","??","("&DOLLAR('Worker Costs_Hours'!G14)&")") -> ??
A64: =A23 -> 0 | B64: =IF(B23="**Select a service**","",B23) -> Adoption Finalization Extension | C64: =IF(OR(C23="",C23=0,SUM(E23:S23)=0),"",(SUM(E64:I64)/SUM(E23:S23))*C23) -> 1.75 | E64: =IF(OR(A64="x",A64="y"),"",M23) -> 30 | G64: =IF(OR(A64="x",A64="y"),"",N23) -> 20 | I64: =IF(OR(A64="x",A64="y"),"",O23) -> 20 | J64: =IF(OR(A64="x",A64="y"),"",IF(OR(B64="",B64="**Select a service**",C64="",C64=0),0,C64*INDEX($F$5:$F$17,MATCH(B64,$B$5:$B$17,0)))) -> 0 | K64: =IF(OR(A64="x",A64="y"),"",IF($K$63="??"," ",IF(OR(B64="",B64="**Select a service**",C64="",C64=0),0,SUM(E64:I64)*'Worker Costs_Hours'!G14))) ->  | L64: =IF(OR(A64="x",A64="y"),"",IF($U$22="??"," ",J64-K64)) ->  | M64: =A45 -> 0 | N64: =IF(B23="**Select a service**","",B23) -> Adoption Finalization Extension | R64: =IF(OR(C23="",C23=0,SUM(E23:S23)=0),"",(SUM(S64:U64)/SUM(E23:S23))*C23) -> 0.75 | S64: =IF(OR(M64="x",M64="y"),"",Q23) -> 10 | T64: =IF(OR(M64="x",M64="y"),"",R23) -> 10 | U64: =IF(OR(M64="x",M64="y"),"",S23) -> 10 | V64: =IF(OR(M64="x",M64="y"),"",IF(OR(N64="",N64="**Select a service**",R64="",R64=0),0,R64*INDEX($F$5:$F$17,MATCH(N64,$B$5:$B$17,0)))) -> 0 | W64: =IF(OR(M64="x",M64="y"),"",IF($W$63="??"," ",IF(OR(N64="",N64="**Select a service**",R64="",R64=0),0,SUM(S64:U64)*'Worker Costs_Hours'!G14))) ->  | X64: =IF(OR(M64="x",M64="y"),"",IF($U$22="??"," ",V64-W64)) -> 
A65: 0 | B65: Child Preparation | C65: 1.833333333 | E65: 33.33333333 | G65: 20 | I65: 20 | J65: =IF(OR(A65="x",A65="y"),"",IF(OR(B65="",B65="**Select a service**",C65="",C65=0),0,C65*INDEX($E$5:$E$17,MATCH(B65,$B$5:$B$17,0)))) -> 5316.666667 | K65: =IF(OR(A65="x",A65="y"),"",IF($K$63="??"," ",IF(OR(B65="",B65="**Select a service**",C65="",C65=0),0,SUM(E65:I65)*'Worker Costs_Hours'!G14))) ->  | M65: 0 | N65: Child Preparation | R65: 1 | S65: 20 | T65: 13.33333333 | U65: 6.666666667 | V65: =IF(OR(M65="x",M65="y"),"",IF(OR(N65="",N65="**Select a service**",R65="",R65=0),0,R65*INDEX($E$5:$E$17,MATCH(N65,$B$5:$B$17,0)))) -> 2900 | W65: =IF(OR(M65="x",M65="y"),"",IF($W$63="??"," ",IF(OR(N65="",N65="**Select a service**",R65="",R65=0),0,SUM(S65:U65)*'Worker Costs_Hours'!G14))) -> 
A66: 0 | B66: Child Profile | C66: 0.3333333333 | E66: 13.33333333 | G66: 0 | I66: 0 | J66: 700 | K66: =IF(OR(A66="x",A66="y"),"",IF($K$63="??"," ",IF(OR(B66="",B66="**Select a service**",C66="",C66=0),0,SUM(E66:I66)*'Worker Costs_Hours'!G14))) ->  | M66: 0 | N66: Child Profile | R66: 2 | S66: 26.66666667 | T66: 26.66666667 | U66: 26.66666667 | V66: 4200 | W66: =IF(OR(M66="x",M66="y"),"",IF($W$63="??"," ",IF(OR(N66="",N66="**Select a service**",R66="",R66=0),0,SUM(S66:U66)*'Worker Costs_Hours'!G14))) -> 
A67: 0 | B67: Child Profile Addendum | C67: 0.6666666667 | E67: 13.33333333 | G67: 0 | I67: 13.33333333 | J67: 900 | K67: =IF(OR(A67="x",A67="y"),"",IF($K$63="??"," ",IF(OR(B67="",B67="**Select a service**",C67="",C67=0),0,SUM(E67:I67)*'Worker Costs_Hours'!G14))) ->  | M67: 0 | N67: Child Profile Addendum | R67: 1.666666667 | S67: 26.66666667 | T67: 26.66666667 | U67: 13.33333333 | V67: 2250 | W67: =IF(OR(M67="x",M67="y"),"",IF($W$63="??"," ",IF(OR(N67="",N67="**Select a service**",R67="",R67=0),0,SUM(S67:U67)*'Worker Costs_Hours'!G14))) -> 
A68: 0 | B68: Child Specific Recruitment | C68: 1.5 | E68: 26.66666667 | G68: 20 | I68: 13.33333333 | J68: 4200 | K68: =IF(OR(A68="x",A68="y"),"",IF($K$63="??"," ",IF(OR(B68="",B68="**Select a service**",C68="",C68=0),0,SUM(E68:I68)*'Worker Costs_Hours'!G14))) ->  | M68: 0 | N68: Child Specific Recruitment | R68: 1 | S68: 13.33333333 | T68: 13.33333333 | U68: 13.33333333 | V68: 2800 | W68: =IF(OR(M68="x",M68="y"),"",IF($W$63="??"," ",IF(OR(N68="",N68="**Select a service**",R68="",R68=0),0,SUM(S68:U68)*'Worker Costs_Hours'!G14))) -> 
A69: 0 | B69: Finalization | C69: 1.5 | E69: 20 | G69: 20 | I69: 20 | J69: 3375 | K69: =IF(OR(A69="x",A69="y"),"",IF($K$63="??"," ",IF(OR(B69="",B69="**Select a service**",C69="",C69=0),0,SUM(E69:I69)*'Worker Costs_Hours'!G14))) ->  | M69: 0 | N69: Finalization | R69: 0.625 | S69: 10 | T69: 10 | U69: 5 | V69: 1406.25 | W69: =IF(OR(M69="x",M69="y"),"",IF($W$63="??"," ",IF(OR(N69="",N69="**Select a service**",R69="",R69=0),0,SUM(S69:U69)*'Worker Costs_Hours'!G14))) -> 
A70: x | B70: Placement | K70: =IF(OR(A70="x",A70="y"),"",IF($K$63="??"," ",IF(OR(B70="",B70="**Select a service**",C70="",C70=0),0,SUM(E70:I70)*'Worker Costs_Hours'!G14))) ->  | M70: x | N70: Placement | W70: =IF(OR(M70="x",M70="y"),"",IF($W$63="??"," ",IF(OR(N70="",N70="**Select a service**",R70="",R70=0),0,SUM(S70:U70)*'Worker Costs_Hours'!G14))) -> 
A71: 0 | B71: Family Profile/Preparation | C71: 0.5 | E71: 0 | G71: 0 | I71: 20 | J71: 1350 | K71: =IF(OR(A71="x",A71="y"),"",IF($K$63="??"," ",IF(OR(B71="",B71="**Select a service**",C71="",C71=0),0,SUM(E71:I71)*'Worker Costs_Hours'!G14))) ->  | M71: 0 | N71: Family Profile/Preparation | R71: 1.5 | S71: 20 | T71: 20 | U71: 20 | V71: 4050 | W71: =IF(OR(M71="x",M71="y"),"",IF($W$63="??"," ",IF(OR(N71="",N71="**Select a service**",R71="",R71=0),0,SUM(S71:U71)*'Worker Costs_Hours'!G14))) -> 
A72: 0 | B72: Family Profile/Preparation Addendum | C72: 0.75 | E72: 0 | G72: 10 | I72: 20 | J72: 1087.5 | K72: =IF(OR(A72="x",A72="y"),"",IF($K$63="??"," ",IF(OR(B72="",B72="**Select a service**",C72="",C72=0),0,SUM(E72:I72)*'Worker Costs_Hours'!G14))) ->  | M72: 0 | N72: Family Profile/Preparation Addendum | R72: 1.25 | S72: 20 | T72: 20 | U72: 10 | V72: 1812.5 | W72: =IF(OR(M72="x",M72="y"),"",IF($W$63="??"," ",IF(OR(N72="",N72="**Select a service**",R72="",R72=0),0,SUM(S72:U72)*'Worker Costs_Hours'!G14))) -> 
A73: 0 | B73: Post-permanency Advocacy/Assessment | C73: 1 | E73: 0 | G73: 0 | I73: 9.081003289 | J73: 500 | K73: =IF(OR(A73="x",A73="y"),"",IF($K$63="??"," ",IF(OR(B73="",B73="**Select a service**",C73="",C73=0),0,SUM(E73:I73)*'Worker Costs_Hours'!G14))) ->  | M73: 0 | N73: Post-permanency Advocacy/Assessment | R73: 1 | S73: 0 | T73: 0 | U73: 9.081003289 | V73: 500 | W73: =IF(OR(M73="x",M73="y"),"",IF($W$63="??"," ",IF(OR(N73="",N73="**Select a service**",R73="",R73=0),0,SUM(S73:U73)*'Worker Costs_Hours'!G14))) -> 
A74: 0 | B74: Post-permanency Advocacy/Case Management | C74: 2 | E74: 0 | G74: 53.8127572 | I74: 0 | J74: 1000 | K74: =IF(OR(A74="x",A74="y"),"",IF($K$63="??"," ",IF(OR(B74="",B74="**Select a service**",C74="",C74=0),0,SUM(E74:I74)*'Worker Costs_Hours'!G14))) ->  | M74: 0 | N74: Post-permanency Advocacy/Case Management | R74: 1 | S74: 0 | T74: 0 | U74: 26.9063786 | V74: 500 | W74: =IF(OR(M74="x",M74="y"),"",IF($W$63="??"," ",IF(OR(N74="",N74="**Select a service**",R74="",R74=0),0,SUM(S74:U74)*'Worker Costs_Hours'!G14))) -> 
A75: 0 | B75: Post-permanency: Support Group | C75: 1.666666667 | E75: 9.796153846 | G75: 3.265384615 | I75: 3.265384615 | J75: 416.6666667 | K75: =IF(OR(A75="x",A75="y"),"",IF($K$63="??"," ",IF(OR(B75="",B75="**Select a service**",C75="",C75=0),0,SUM(E75:I75)*'Worker Costs_Hours'!G14))) ->  | M75: 0 | N75: Post-permanency: Support Group | R75: 1 | S75: 3.265384615 | T75: 3.265384615 | U75: 3.265384615 | V75: 250 | W75: =IF(OR(M75="x",M75="y"),"",IF($W$63="??"," ",IF(OR(N75="",N75="**Select a service**",R75="",R75=0),0,SUM(S75:U75)*'Worker Costs_Hours'!G14))) -> 
A76: 0 | B76: Post-permanency: Respite | C76: 1 | E76: 0 | G76: 0 | I76: 7.891629297 | J76: 300 | K76: =IF(OR(A76="x",A76="y"),"",IF($K$63="??"," ",IF(OR(B76="",B76="**Select a service**",C76="",C76=0),0,SUM(E76:I76)*'Worker Costs_Hours'!G14))) ->  | M76: 0 | N76: Post-permanency: Respite | R76: 0 | S76: 0 | T76: 0 | U76: 0 | V76: 0 | W76: =IF(OR(M76="x",M76="y"),"",IF($W$63="??"," ",IF(OR(N76="",N76="**Select a service**",R76="",R76=0),0,SUM(S76:U76)*'Worker Costs_Hours'!G14))) -> 
B77: *** | N77: ****
E78: =SUM(E64:E77) -> 146.4628205 | G78: =SUM(G64:G77) -> 147.0781418 | I78: =SUM(I64:I77) -> 146.9046839 | J78: 19145.83333 | K78: 0 | L78: 0 | S78: =SUM(S64:S77) -> 149.9320513 | T78: 143.2653846 | U78: 144.2527665 | V78: 20668.75 | W78: 0 | X78: =SUM(X64:X76) -> 0

Sheet Schedule (hidden)
J3: Statewide | M3: Affiliate
C4: Service | F4: Months | H4: Rate | J4: Hours | L4: Hours Per Month | M4: Hours | N4: Hours Per Month
C5: =Services!$C$5 -> Adoption Finalization Extension | F5: =IF(ISERROR(INDEX(Services!$I$5:$I$20,MATCH($C5,Services!$C$5:$C$20,0))/30),"n/a",INDEX(Services!$I$5:$I$20,MATCH($C5,Services!$C$5:$C$20,0))/30) -> 4 | G5: =IF(ISERROR(INDEX(Services!$I$5:$I$20,MATCH($C5,Services!$C$5:$C$20,0))/30),"n/a",INDEX(Services!$I$5:$I$20,MATCH($C5,Services!$C$5:$C$20,0))/30) -> 4 | H5: =INDEX(Services!$H$5:$H$20,MATCH($C$5,Services!$C$5:$C$20,0)) -> 1200 | J5: =References!O5 -> 20.04682274 | L5: =IF(F5=0,0,IF(F5="n/a","n/a",J5/F5)) -> 5.011705686 | M5: =AveHours!F10 -> 0 | N5: =IF(F5=0,0,IF(F5="n/a","n/a",M5/F5)) -> 0
C6: =Services!$C$6 -> Child Preparation | F6: =IF(ISERROR(INDEX(Services!$I$5:$I$20,MATCH($C6,Services!$C$5:$C$20,0))/30),"n/a",INDEX(Services!$I$5:$I$20,MATCH($C6,Services!$C$5:$C$20,0))/30) -> 6 | G6: =IF(ISERROR(INDEX(Services!$I$5:$I$20,MATCH($C6,Services!$C$5:$C$20,0))/30),"n/a",INDEX(Services!$I$5:$I$20,MATCH($C6,Services!$C$5:$C$20,0))/30) -> 6 | H6: =INDEX(Services!$H$5:$H$20,MATCH($C$6,Services!$C$5:$C$20,0)) -> 2900 | J6: =References!O6 -> 42.70239223 | L6: 7.117065372 | M6: =AveHours!F11 -> 0 | N6: 0
C7: =Services!$C$7 -> Child Profile | F7: =IF(ISERROR(INDEX(Services!$I$5:$I$20,MATCH($C7,Services!$C$5:$C$20,0))/30),"n/a",INDEX(Services!$I$5:$I$20,MATCH($C7,Services!$C$5:$C$20,0))/30) -> 3 | G7: =IF(ISERROR(INDEX(Services!$I$5:$I$20,MATCH($C7,Services!$C$5:$C$20,0))/30),"n/a",INDEX(Services!$I$5:$I$20,MATCH($C7,Services!$C$5:$C$20,0))/30) -> 3 | H7: =INDEX(Services!$H$5:$H$20,MATCH($C$7,Services!$C$5:$C$20,0)) -> 2100 | J7: =References!O7 -> 35.36218595 | L7: 11.78739532 | M7: =AveHours!F12 -> 0 | N7: 0
C8: =Services!$C$8 -> Child Profile Addendum | F8: =IF(ISERROR(INDEX(Services!$I$5:$I$20,MATCH($C8,Services!$C$5:$C$20,0))/30),"n/a",INDEX(Services!$I$5:$I$20,MATCH($C8,Services!$C$5:$C$20,0))/30) -> 3 | G8: =IF(ISERROR(INDEX(Services!$I$5:$I$20,MATCH($C8,Services!$C$5:$C$20,0))/30),"n/a",INDEX(Services!$I$5:$I$20,MATCH($C8,Services!$C$5:$C$20,0))/30) -> 3 | H8: =INDEX(Services!$H$5:$H$20,MATCH($C$8,Services!$C$5:$C$20,0)) -> 1350 | J8: =References!O8 -> 26.71051033 | L8: 8.903503443 | M8: =AveHours!F13 -> 0 | N8: 0
C9: =Services!$C$9 -> Child Specific Recruitment | F9: =IF(ISERROR(INDEX(Services!$I$5:$I$20,MATCH($C9,Services!$C$5:$C$20,0))/30),"n/a",INDEX(Services!$I$5:$I$20,MATCH($C9,Services!$C$5:$C$20,0))/30) -> 6 | G9: =IF(ISERROR(INDEX(Services!$I$5:$I$20,MATCH($C9,Services!$C$5:$C$20,0))/30),"n/a",INDEX(Services!$I$5:$I$20,MATCH($C9,Services!$C$5:$C$20,0))/30) -> 6 | H9: =INDEX(Services!$H$5:$H$20,MATCH($C$9,Services!$C$5:$C$20,0)) -> 2800 | J9: =References!O9 -> 43.0072095 | L9: 7.16786825 | M9: =AveHours!F14 -> 0 | N9: 0
C10: =Services!$C$10 -> Finalization | F10: =IF(ISERROR(INDEX(Services!$I$5:$I$20,MATCH($C10,Services!$C$5:$C$20,0))/30),"n/a",INDEX(Services!$I$5:$I$20,MATCH($C10,Services!$C$5:$C$20,0))/30) -> 8 | G10: =IF(ISERROR(INDEX(Services!$I$5:$I$20,MATCH($C10,Services!$C$5:$C$20,0))/30),"n/a",INDEX(Services!$I$5:$I$20,MATCH($C10,Services!$C$5:$C$20,0))/30) -> 8 | H10: =INDEX(Services!$H$5:$H$20,MATCH($C$10,Services!$C$5:$C$20,0)) -> 2250 | J10: =References!O10 -> 48.87682181 | L10: 6.109602727 | M10: =AveHours!F17 -> 0 | N10: 0
C11: =Services!$C$11 -> Placement | F11: =IF(ISERROR(INDEX(Services!$I$5:$I$20,MATCH($C11,Services!$C$5:$C$20,0))/30),"n/a",INDEX(Services!$I$5:$I$20,MATCH($C11,Services!$C$5:$C$20,0))/30) -> n/a | G11: =IF(ISERROR(INDEX(Services!$I$5:$I$20,MATCH($C11,Services!$C$5:$C$20,0))/30),"n/a",INDEX(Services!$I$5:$I$20,MATCH($C11,Services!$C$5:$C$20,0))/30) -> n/a | H11: =INDEX(Services!$H$5:$H$20,MATCH($C$11,Services!$C$5:$C$20,0)) -> 1950 | J11: =References!O11 -> 27.37468354 | L11: n/a | M11: =AveHours!F18 -> 0 | N11: n/a
C12: =Services!$C$15 -> Family Profile/Preparation | F12: =IF(ISERROR(INDEX(Services!$I$5:$I$20,MATCH($C12,Services!$C$5:$C$20,0))/30),"n/a",INDEX(Services!$I$5:$I$20,MATCH($C12,Services!$C$5:$C$20,0))/30) -> 4 | G12: =IF(ISERROR(INDEX(Services!$I$5:$I$20,MATCH($C12,Services!$C$5:$C$20,0))/30),"n/a",INDEX(Services!$I$5:$I$20,MATCH($C12,Services!$C$5:$C$20,0))/30) -> 4 | H12: =INDEX(Services!$H$5:$H$20,MATCH($C$12,Services!$C$5:$C$20,0)) -> 2700 | J12: =References!O12 -> 38.65992509 | L12: 9.664981273 | M12: =AveHours!F15 -> 0 | N12: 0
C13: =Services!$C$16 -> Family Profile/Preparation Addendum | F13: =IF(ISERROR(INDEX(Services!$I$5:$I$20,MATCH($C13,Services!$C$5:$C$20,0))/30),"n/a",INDEX(Services!$I$5:$I$20,MATCH($C13,Services!$C$5:$C$20,0))/30) -> 4 | G13: =IF(ISERROR(INDEX(Services!$I$5:$I$20,MATCH($C13,Services!$C$5:$C$20,0))/30),"n/a",INDEX(Services!$I$5:$I$20,MATCH($C13,Services!$C$5:$C$20,0))/30) -> 4 | H13: =INDEX(Services!$H$5:$H$20,MATCH($C$13,Services!$C$5:$C$20,0)) -> 1450 | J13: =References!O13 -> 37.56203008 | L13: 9.390507519 | M13: =AveHours!F16 -> 0 | N13: 0
C14: =Services!$C$17 -> Post-permanency Advocacy/Assessment | F14: =IF(ISERROR(INDEX(Services!$I$5:$I$20,MATCH($C14,Services!$C$5:$C$20,0))/30),"n/a",INDEX(Services!$I$5:$I$20,MATCH($C14,Services!$C$5:$C$20,0))/30) -> 1 | G14: =IF(ISERROR(INDEX(Services!$I$5:$I$20,MATCH($C14,Services!$C$5:$C$20,0))/30),"n/a",INDEX(Services!$I$5:$I$20,MATCH($C14,Services!$C$5:$C$20,0))/30) -> 1 | H14: =INDEX(Services!$H$5:$H$20,MATCH($C$14,Services!$C$5:$C$20,0)) -> 500 | J14: =References!R6 -> 9.081003289 | L14: 9.081003289 | M14: =AveHours!F24 -> 0 | N14: 0
C15: =Services!$C$18 -> Post-permanency Advocacy/Case Management | F15: =IF(ISERROR(INDEX(Services!$I$5:$I$20,MATCH($C15,Services!$C$5:$C$20,0))/30),"n/a",INDEX(Services!$I$5:$I$20,MATCH($C15,Services!$C$5:$C$20,0))/30) -> 1 | G15: =IF(ISERROR(INDEX(Services!$I$5:$I$20,MATCH($C15,Services!$C$5:$C$20,0))/30),"n/a",INDEX(Services!$I$5:$I$20,MATCH($C15,Services!$C$5:$C$20,0))/30) -> 1 | H15: =INDEX(Services!$H$5:$H$20,MATCH($C$15,Services!$C$5:$C$20,0)) -> 500 | J15: =References!R5 -> 26.9063786 | L15: 26.9063786 | M15: =AveHours!F23 -> 0 | N15: 0
C16: =Services!$C$19 -> Post-permanency: Support Group | F16: =IF(ISERROR(INDEX(Services!$I$5:$I$20,MATCH($C16,Services!$C$5:$C$20,0))/30),"n/a",INDEX(Services!$I$5:$I$20,MATCH($C16,Services!$C$5:$C$20,0))/30) -> 3 | G16: =IF(ISERROR(INDEX(Services!$I$5:$I$20,MATCH($C16,Services!$C$5:$C$20,0))/30),"n/a",INDEX(Services!$I$5:$I$20,MATCH($C16,Services!$C$5:$C$20,0))/30) -> 3 | H16: =INDEX(Services!$H$5:$H$20,MATCH($C$16,Services!$C$5:$C$20,0)) -> 250 | J16: =References!R8 -> 9.796153846 | L16: 3.265384615 | M16: =AveHours!F26 -> 0 | N16: 0
C17: =Services!$C$20 -> Post-permanency: Respite | F17: =IF(ISERROR(INDEX(Services!$I$5:$I$20,MATCH($C17,Services!$C$5:$C$20,0))/30),"n/a",INDEX(Services!$I$5:$I$20,MATCH($C17,Services!$C$5:$C$20,0))/30) -> 1 | G17: =IF(ISERROR(INDEX(Services!$I$5:$I$20,MATCH($C17,Services!$C$5:$C$20,0))/30),"n/a",INDEX(Services!$I$5:$I$20,MATCH($C17,Services!$C$5:$C$20,0))/30) -> 1 | H17: =INDEX(Services!$H$5:$H$20,MATCH($C$17,Services!$C$5:$C$20,0)) -> 300 | J17: =References!R7 -> 7.891629297 | L17: 7.891629297 | M17: =AveHours!F25 -> 0 | N17: 0
Y19: Total Available Hours: | Z19: ='Worker Costs_Hours'!J11 ->  | AB19: Total Earnings: | AC19: =Y27 -> 0
O20: Annual Workload | Y20: Scheduled Hours: | Z20: =SUM(H27:X27) -> 0 | AB20: Total Worker Cost: | AC20: ='Worker Costs_Hours'!E11 -> 0
Y21: Remaining Available Hours: | Z21: =IF(OR(Z19="",Z19=0),"",Z19-Z20) ->  | AB21: Profit/Loss: | AC21: =AC19-AC20 -> 0
F23: # of Cases | H23: 2020-07-01 | J23: =IF(OR(H23=""),"",EDATE(H23,1)) -> 2020-08-01 | L23: =IF(J23="","",EDATE(J23,1)) -> 2020-09-01 | M23: =IF(L23="","",EDATE(L23,1)) -> 2020-10-01 | N23: 2020-11-01 | O23: 2020-12-01 | P23: 2021-01-01 | S23: =IF(P23="","",EDATE(P23,1)) -> 2021-02-01 | T23: =IF(S23="","",EDATE(S23,1)) -> 2021-03-01 | U23: =IF(T23="","",EDATE(T23,1)) -> 2021-04-01 | V23: =IF(U23="","",EDATE(U23,1)) -> 2021-05-01 | X23: =IF(V23="","",EDATE(V23,1)) -> 2021-06-01 | Y23: Earnings | Z23: Total Cost based on Worker Rate | AA23: Profit/Loss based on Worker Rate | AB23: Est. Hours | AC23: Total Hours | AD23: Hrs per Unit of Service
F24: ="Total = "&SUM(F25:F26) -> Total = 0 | Z24: =IF('Worker Costs_Hours'!G14="","??","("&DOLLAR('Worker Costs_Hours'!G14)&")") -> ??
B25: 1 | C25: ü | D25: **Select a service** | E25: (FY 21/22) | Y25: =IF(OR(D25="",D25="**Select a service**",E25=""),0,IF(INDEX(References!$F$3:$F$67,MATCH(D25&" "&E25,References!$B$3:$B$67,0))="N/A","N/A",IF(OR(C25="û",F25="",F25=0),0,(F25*INDEX(References!$F$3:$F$67,MATCH(D25&" "&E25,References!$B$3:$B$67,0)))))) -> 0 | Z25: =IF('Worker Costs_Hours'!$G$14=""," ",IF(OR(D25="",D25="**Select a service**",E25=""),0,IF(INDEX(References!$F$3:$F$67,MATCH(D25&" "&E25,References!$B$3:$B$67,0))="N/A","N/A",IF(OR(F25="",F25=0),0,SUM(H25:X25)*'Worker Costs_Hours'!$G$14)))) ->  | AA25: =IF($Z$24="??"," ",IF(OR(D25="**Select a service**",D25="",E25=""),Y25-Z25,IF(INDEX(References!$F$3:$F$67,MATCH(D25&" "&E25,References!$B$3:$B$67,0))="N/A","N/A",Y25-Z25))) ->  | AB25: =IF(OR(D25="",D25="**Select a service**",E25=""),0,IF(INDEX(References!$F$3:$F$67,MATCH(D25&" "&E25,References!$B$3:$B$67,0))="N/A","N/A",F25*(INDEX($M$5:$M$17,MATCH(D25,$C$5:$C$17,0))))) -> 0 | AC25: =IF(OR(D25="**Select a service**",D25="",E25=""),0,IF(INDEX(References!$F$3:$F$67,MATCH(D25&" "&E25,References!$B$3:$B$67,0))="N/A","N/A",SUM(H25:X25))) -> 0 | AD25: =IF(OR(D25="**Select a service**",D25="",E25=""),0,IF(INDEX(References!$F$3:$F$67,MATCH(D25&" "&E25,References!$B$3:$B$67,0))="N/A","N/A",IF(OR(F25=0,F25=""),0,AC25/F25))) -> 0
D26: *****
H27: =SUM(H25:I26) -> 0 | J27: =SUM(J25:K26) -> 0 | L27: =SUM(L25:L26) -> 0 | M27: =SUM(M25:M26) -> 0 | N27: =SUM(N25:N26) -> 0 | O27: =SUM(O25:O26) -> 0 | P27: =SUM(P25:P26) -> 0 | S27: =SUM(S25:S26) -> 0 | T27: =SUM(T25:T26) -> 0 | U27: =SUM(U25:U26) -> 0 | V27: =SUM(V25:V26) -> 0 | X27: =SUM(X25:X26) -> 0 | Y27: 0 | Z27: 0 | AA27: 0 | AB27: 0 | AC27: 0 | AD27: 0
O28: HOURS | P28: ="(Total = "&TEXT(SUM(H27:X27),"#,##0.0")&")" -> (Total = 0.0)
H29: =IF('Worker Costs_Hours'!G14="","",IF(COUNTIF(H27:X27,">"&'Worker Costs_Hours'!J12)>0,"**The Total Hours Available per month ("&TEXT('Worker Costs_Hours'!J12,"#,##0.00")&") has been exceeded**","")) -> 
C30: Quarterly Workload
M31: * # of Cases = ([Hours in quarter] ÷ [Hours in year]) x [# of Cases in year]
D32: QUARTER 1 | F32: # of Cases* | H32: =H23 -> 2020-07-01 | J32: =J23 -> 2020-08-01 | L32: =L23 -> 2020-09-01 | M32: Earnings | N32: Total Cost based on Worker Rate | O32: Profit/Loss based on Worker Rate | S32: QUARTER 2 | X32: # of Cases* | Y32: =M23 -> 2020-10-01 | Z32: =N23 -> 2020-11-01 | AA32: =O23 -> 2020-12-01 | AB32: Earnings | AC32: Total Cost based on Worker Rate | AD32: Profit/Loss based on Worker Rate
F33: ="Total = "&TEXT(SUM(F34:F35),"0.00") -> Total = 0.00 | N33: =IF('Worker Costs_Hours'!G14="","??","("&DOLLAR('Worker Costs_Hours'!G14)&")") -> ?? | X33: ="Total = "&TEXT(SUM(X34:X35),"0.00") -> Total = 0.00 | AC33: =IF('Worker Costs_Hours'!G14="","??","("&DOLLAR('Worker Costs_Hours'!G14)&")") -> ??
C34: =C25 -> ü | D34: =IF(OR(D25="**Select a service**",D25=""),"",D25) ->  | E34: =IF(OR(E25="**Select a service**",E25=""),"",E25) -> (FY 21/22) | F34: =IF(OR(F25="",F25=0,SUM(H25:X25)=0),"",(SUM(H34:L34)/SUM(H25:X25))*F25) ->  | H34: =H25 -> 0 | J34: =J25 -> 0 | L34: =L25 -> 0 | M34: =IF(OR(D34="",E34=""),0,IF(INDEX(References!$F$3:$F$67,MATCH(D25&" "&E25,References!$B$3:$B$67,0))="N/A","N/A",IF(OR(C34="û",F34="",F34=0),0,F34*INDEX(References!$F$3:$F$67,MATCH(D25&" "&E25,References!$B$3:$B$67,0))))) -> 0 | N34: =IF($N$33="??"," ",IF(OR(D34="",E34=""),0,IF(INDEX(References!$F$3:$F$67,MATCH(D25&" "&E25,References!$B$3:$B$67,0))="N/A","N/A",IF(OR(F34="",F34=0),0,SUM(H34:L34)*'Worker Costs_Hours'!$G$14)))) ->  | O34: =IF($Z$24="??"," ",IF(OR(D34="",E34=""),M34-N34,IF(INDEX(References!$F$3:$F$67,MATCH(D25&" "&E25,References!$B$3:$B$67,0))="N/A","N/A",M34-N34))) ->  | R34: =C25 -> ü | S34: =IF(OR(D25="**Select a service**",D25=""),"",D25) ->  | W34: =IF(OR(E25="**Select a service**",E25=""),"",E25) -> (FY 21/22) | X34: =IF(OR(F25="",F25=0,SUM(H25:X25)=0),"",(SUM(Y34:AA34)/SUM(H25:X25))*F25) ->  | Y34: =M25 -> 0 | Z34: 0 | AA34: 0 | AB34: =IF(OR(S34="",W34=""),0,IF(INDEX(References!$F$3:$F$67,MATCH(D25&" "&E25,References!$B$3:$B$67,0))="N/A","N/A",IF(OR(R34="û",X34="",X34=0),0,X34*INDEX(References!$F$3:$F$67,MATCH(D25&" "&E25,References!$B$3:$B$67,0))))) -> 0 | AC34: =IF($AC$33="??"," ",IF(OR(S34="",W34=""),0,IF(INDEX(References!$F$3:$F$67,MATCH(D25&" "&E25,References!$B$3:$B$67,0))="N/A","N/A",IF(OR(X34="",X34=0),0,SUM(Y34:AA34)*'Worker Costs_Hours'!$G$14)))) ->  | AD34: =IF($Z$24="??"," ",IF(OR(S34="",W34=""),AB34-AC34,IF(INDEX(References!$F$3:$F$67,MATCH(D25&" "&E25,References!$B$3:$B$67,0))="N/A","N/A",AB34-AC34))) -> 
D35: * | R35: **
H36: =SUM(H34:H35) -> 0 | J36: =SUM(J34:J35) -> 0 | L36: =SUM(L34:L35) -> 0 | M36: =SUM(M34:M35) -> 0 | N36: =SUM(N34:N35) -> 0 | O36: =SUM(O34:O35) -> 0 | Y36: =SUM(Y34:Y35) -> 0 | Z36: 0 | AA36: 0 | AB36: 0 | AC36: 0 | AD36: 0
D39: QUARTER 3 | F39: # of Cases* | H39: =P23 -> 2021-01-01 | J39: =P23 -> 2021-01-01 | L39: =S23 -> 2021-02-01 | M39: Earnings | N39: Total Cost based on Worker Rate | O39: Profit/Loss based on Worker Rate | S39: QUARTER 4 | X39: # of Cases* | Y39: =U23 -> 2021-04-01 | Z39: =V23 -> 2021-05-01 | AA39: =X23 -> 2021-06-01 | AB39: Earnings | AC39: Total Cost based on Worker Rate | AD39: Profit/Loss based on Worker Rate
F40: ="Total = "&TEXT(SUM(G41:G42),"0.00") -> Total = 0.00 | N40: =IF('Worker Costs_Hours'!G14="","??","("&DOLLAR('Worker Costs_Hours'!G14)&")") -> ?? | X40: ="Total = "&TEXT(SUM(X41:X42),"0.00") -> Total = 0.00 | AC40: =IF('Worker Costs_Hours'!G14="","??","("&DOLLAR('Worker Costs_Hours'!G14)&")") -> ??
C41: =C25 -> ü | D41: =IF(OR(D25="**Select a service**",D25=""),"",D25) ->  | E41: =IF(OR(E25="**Select a service**",E25=""),"",E25) -> (FY 21/22) | F41: =IF(OR(F25="",F25=0,SUM(H25:X25)=0),"",(SUM(H41:L41)/SUM(H25:X25))*F25) ->  | H41: =P25 -> 0 | J41: =S25 -> 0 | L41: =T25 -> 0 | M41: =IF(OR(D41="",E41=""),0,IF(INDEX(References!$F$3:$F$67,MATCH(D25&" "&E25,References!$B$3:$B$67,0))="N/A","N/A",IF(OR(C41="û",F41="",F41=0),0,F41*INDEX(References!$F$3:$F$67,MATCH(D25&" "&E25,References!$B$3:$B$67,0))))) -> 0 | N41: =IF($N$40="??"," ",IF(OR(D41="",E41=""),0,IF(INDEX(References!$F$3:$F$67,MATCH(D25&" "&E25,References!$B$3:$B$67,0))="N/A","N/A",IF(OR(F41="",F41=0),0,SUM(H41:L41)*'Worker Costs_Hours'!$G$14)))) ->  | O41: =IF($Z$24="??"," ",IF(OR(D41="",E41=""),M41-N41,IF(INDEX(References!$F$3:$F$67,MATCH(D25&" "&E25,References!$B$3:$B$67,0))="N/A","N/A",M41-N41))) ->  | R41: =C25 -> ü | S41: =IF(OR(D25="**Select a service**",D25=""),"",D25) ->  | W41: =IF(OR(E25="**Select a service**",E25=""),"",E25) -> (FY 21/22) | X41: =IF(OR(F25="",F25=0,SUM(H25:X25)=0),"",(SUM(Y41:AA41)/SUM(H25:X25))*F25) ->  | Y41: =U25 -> 0 | Z41: =V25 -> 0 | AA41: =X25 -> 0 | AB41: =IF(OR(S41="",W41=""),0,IF(INDEX(References!$F$3:$F$67,MATCH(D25&" "&E25,References!$B$3:$B$67,0))="N/A","N/A",IF(OR(R41="û",X41="",X41=0),0,X41*INDEX(References!$F$3:$F$67,MATCH(D25&" "&E25,References!$B$3:$B$67,0))))) -> 0 | AC41: =IF($AC$40="??"," ",IF(OR(S41="",W41=""),0,IF(INDEX(References!$F$3:$F$67,MATCH(D25&" "&E25,References!$B$3:$B$67,0))="N/A","N/A",IF(OR(X41="",X41=0),0,SUM(Y41:AA41)*'Worker Costs_Hours'!$G$14)))) ->  | AD41: =IF($Z$24="??"," ",IF(OR(S41="",W41=""),AB41-AC41,IF(INDEX(References!$F$3:$F$67,MATCH(D25&" "&E25,References!$B$3:$B$67,0))="N/A","N/A",AB41-AC41))) -> 
D42: *** | R42: ****
H43: =SUM(H41:H42) -> 0 | J43: =SUM(J41:J42) -> 0 | L43: =SUM(L41:L42) -> 0 | M43: =SUM(M41:M42) -> 0 | N43: =SUM(N41:N42) -> 0 | O43: =SUM(O41:O42) -> 0 | Y43: =SUM(Y41:Y42) -> 0 | Z43: 0 | AA43: 0 | AB43: 0 | AC43: 0 | AD43: 0
... 1 more rows

Sheet References (hidden)
B1: Service | D1: Days to Complete | F1: Rate | H1: Hours¹ | I1: Rate/hour¹ | J1: Months | K1: Hours Per Month
B2: **Select a service** | M2: 2018-01-01 | N2: 2018-02-01 | O2: 2018-03-01 | P2: 2018-04-01 | Q2: 2018-05-01 | R2: 2018-06-01 | S2: 2018-07-01 | T2: 2018-08-01 | U2: 2018-09-01 | V2: 2018-10-01 | W2: 2018-11-01 | X2: 2018-12-01 | Y2: 2019-01-01 | Z2: 2019-02-01 | AA2: 2019-03-01 | AB2: 2019-04-01 | AC2: 2019-05-01 | AD2: 2019-06-01 | AE2: 2019-07-01 | AF2: 2019-08-01 | AG2: 2019-09-01 | AH2: 2019-10-01 | AI2: 2019-11-01 | AJ2: 2019-12-01 | AK2: 2020-01-01 | AL2: 2020-02-01 | AM2: 2020-03-01 | AN2: 2020-04-01 | AO2: 2020-05-01 | AP2: 2020-06-01 | AQ2: 2020-07-01 | AR2: 2020-08-01 | AS2: 2020-09-01 | AT2: 2020-10-01 | AU2: 2020-11-01 | AV2: 2020-12-01 | AW2: 2021-01-01 | AX2: 2021-02-01 | AY2: 2021-03-01 | AZ2: 2021-04-01 | BA2: 2021-05-01 | BB2: 2021-06-01 | BC2: 2021-07-01 | BD2: 2021-08-01 | BE2: 2021-09-01 | BF2: 2021-10-01 | BG2: 2021-11-01 | BH2: 2021-12-01 | BI2: 2022-01-01 | BJ2: 2022-02-01 | BK2: 2022-03-01 | BL2: 2022-04-01 | BM2: 2022-05-01 | BN2: 2022-06-01 | BO2: 2022-07-01 | BP2: 2022-08-01 | BQ2: 2022-09-01 | BR2: 2022-10-01 | BS2: 2022-11-01 | BT2: 2022-12-01 | BU2: 2023-01-01 | BV2: 2023-02-01 | BW2: 2023-03-01 | BX2: 2023-04-01 | BY2: 2023-05-01 | BZ2: 2023-06-01 | CA2: 2023-07-01 | CB2: 2023-08-01 | CC2: 2023-09-01 | CD2: 2023-10-01 | CE2: 2023-11-01 | CF2: 2023-12-01 | CG2: 2024-01-01 | CH2: 2024-02-01 | CI2: 2024-03-01 | CJ2: 2024-04-01 | CK2: 2024-05-01 | CL2: 2024-06-01 | CM2: 2024-07-01 | CN2: 2024-08-01 | CO2: 2024-09-01 | CP2: 2024-10-01 | CQ2: 2024-11-01 | CR2: 2024-12-01 | CS2: 2025-01-01 | CT2: 2025-02-01 | CU2: 2025-03-01 | CV2: 2025-04-01 | CW2: 2025-05-01 | CX2: 2025-06-01 | CY2: 2025-07-01 | CZ2: 2025-08-01 | DA2: 2025-09-01 | DB2: 2025-10-01 | DC2: 2025-11-01 | DD2: 2025-12-01 | DE2: 2026-01-01 | DF2: 2026-02-01 | DG2: 2026-03-01 | DH2: 2026-04-01 | DI2: 2026-05-01 | DJ2: 2026-06-01 | DK2: 2026-07-01 | DL2: 2026-08-01 | DM2: 2026-09-01 | DN2: 2026-10-01 | DO2: 2026-11-01 | DP2: 2026-12-01 | DQ2: 2027-01-01 | DR2: 2027-02-01 | DS2: 2027-03-01 | DT2: 2027-04-01 | DU2: 2027-05-01 | DV2: 2027-06-01 | DW2: 2027-07-01 | DX2: 2027-08-01 | DY2: 2027-09-01 | DZ2: 2027-10-01 | EA2: 2027-11-01 | EB2: 2027-12-01 | EC2: 2028-01-01 | ED2: 2028-02-01 | EE2: 2028-03-01 | EF2: 2028-04-01 | EG2: 2028-05-01 | EH2: 2028-06-01 | EI2: 2028-07-01 | EJ2: 2028-08-01 | EK2: 2028-09-01 | EL2: 2028-10-01 | EM2: 2028-11-01 | EN2: 2028-12-01 | EO2: 2029-01-01 | EP2: 2029-02-01 | EQ2: 2029-03-01 | ER2: 2029-04-01 | ES2: 2029-05-01 | ET2: 2029-06-01 | EU2: 2029-07-01 | EV2: 2029-08-01 | EW2: 2029-09-01 | EX2: 2029-10-01 | EY2: 2029-11-01 | EZ2: 2029-12-01 | FA2: 2030-01-01 | FB2: 2030-02-01 | FC2: 2030-03-01 | FD2: 2030-04-01 | FE2: 2030-05-01 | FF2: 2030-06-01 | FG2: 2030-07-01 | FH2: 2030-08-01 | FI2: 2030-09-01 | FJ2: 2030-10-01 | FK2: 2030-11-01 | FL2: 2030-12-01
A3: ="*"&L3 -> *(FY 22/23) | B3: =$N$5&" "&L3 -> Adoption Finalization Extension (FY 22/23) | D3: =VLOOKUP(LEFT($B3,FIND("(",$B3)-2),Services!$C$5:$M$20,11,FALSE) -> 120 | F3: =VLOOKUP(LEFT($B3,FIND("(",$B3)-2),Services!$C$5:$M$20,10,FALSE) -> 1250 | J3: =IF(D3="n/a","n/a",D3/30) -> 4 | K3: =IF(ISERROR(H3/J3),"n/a",H3/J3) -> 0 | L3: (FY 22/23)
A4: =L4 -> (FY 21/22) | B4: =$N$5&" "&L4 -> Adoption Finalization Extension (FY 21/22) | D4: =VLOOKUP(LEFT(B4,FIND("(",B4)-2),Services!$C$5:$M$20,9,FALSE) -> 120 | F4: =VLOOKUP(LEFT($B4,FIND("(",$B4)-2),Services!$C$5:$M$20,8,FALSE) -> 1250 | J4: =IF(D4="n/a","n/a",D4/30) -> 4 | K4: =IF(ISERROR(H4/J4),"n/a",H4/J4) -> 0 | L4: (FY 21/22) | M4: Affiliate | N4: Benchmark Type | O4: Average Time | Q4: Benchmark Type | R4: Average Time
A5: =L5 -> (FY 20/21) | B5: =$N$5&" "&L5 -> Adoption Finalization Extension (FY 20/21) | D5: =VLOOKUP(LEFT(B5,FIND("(",B5)-2),Services!$C$5:$M$20,7,FALSE) -> 120 | F5: =VLOOKUP(LEFT($B5,FIND("(",$B5)-2),Services!$C$5:$M$20,6,FALSE) -> 1200 | J5: 4 | K5: 0 | L5: (FY 20/21) | M5: Statewide | N5: Adoption Finalization Extension | O5: 20.04682274 | Q5: Post-permanency Advocacy/Case Management | R5: 26.9063786
A6: =L6 -> (FY 19/20) | B6: =$N$5&" "&L6 -> Adoption Finalization Extension (FY 19/20) | D6: =VLOOKUP(LEFT(B6,FIND("(",B6)-2),Services!$C$5:$M$20,5,FALSE) -> 120 | F6: =VLOOKUP(LEFT($B6,FIND("(",$B6)-2),Services!$C$5:$M$20,4,FALSE) -> 1475 | J6: 4 | K6: 0 | L6: (FY 19/20) | N6: Child Preparation | O6: 42.70239223 | Q6: Post-permanency Advocacy/Assessment | R6: 9.081003289
A7: =L7 -> (FY 18/19) | B7: =$N$5&" "&L7 -> Adoption Finalization Extension (FY 18/19) | D7: =VLOOKUP(LEFT(B7,FIND("(",B7)-2),Services!$C$5:$M$20,3,FALSE) -> 120 | F7: =VLOOKUP(LEFT($B7,FIND("(",$B7)-2),Services!$C$5:$M$20,2,FALSE) -> 1600 | J7: 4 | K7: 0 | L7: (FY 18/19) | N7: Child Profile | O7: 35.36218595 | Q7: Post-permanency: Respite | R7: 7.891629297
A8: ="*"&L3 -> *(FY 22/23) | B8: =$N$6&" "&L3 -> Child Preparation (FY 22/23) | D8: =VLOOKUP(LEFT($B8,FIND("(",$B8)-2),Services!$C$5:$M$20,11,FALSE) -> 180 | F8: =VLOOKUP(LEFT($B8,FIND("(",$B8)-2),Services!$C$5:$M$20,10,FALSE) -> 2900 | J8: 6 | K8: 0 | N8: Child Profile Addendum | O8: 26.71051033 | Q8: Post-permanency: Support Group | R8: 9.796153846
A9: =IF(RIGHT(B9,3)<>"21)",MID(B9,FIND("(",B9)+1,8),IF(RIGHT(B9,3)="21)","*"&MID(B9,FIND("(",B9)+1,8),"")) -> FY 21/22 | B9: =$N$6&" "&L4 -> Child Preparation (FY 21/22) | D9: =VLOOKUP(LEFT(B9,FIND("(",B9)-2),Services!$C$5:$M$20,9,FALSE) -> 180 | F9: =VLOOKUP(LEFT($B9,FIND("(",$B9)-2),Services!$C$5:$M$20,8,FALSE) -> 2900 | J9: 6 | K9: 0 | N9: Child Specific Recruitment | O9: 43.0072095
A10: *FY 20/21 | B10: =$N$6&" "&L5 -> Child Preparation (FY 20/21) | D10: =VLOOKUP(LEFT(B10,FIND("(",B10)-2),Services!$C$5:$M$20,7,FALSE) -> 180 | F10: =VLOOKUP(LEFT($B10,FIND("(",$B10)-2),Services!$C$5:$M$20,6,FALSE) -> 2900 | J10: 6 | K10: 0 | N10: Finalization | O10: 48.87682181
A11: FY 19/20 | B11: =$N$6&" "&L6 -> Child Preparation (FY 19/20) | D11: =VLOOKUP(LEFT(B11,FIND("(",B11)-2),Services!$C$5:$M$20,5,FALSE) -> 180 | F11: =VLOOKUP(LEFT($B11,FIND("(",$B11)-2),Services!$C$5:$M$20,4,FALSE) -> 2900 | J11: 6 | K11: 0 | N11: Placement | O11: 27.37468354
A12: FY 18/19 | B12: =$N$6&" "&L7 -> Child Preparation (FY 18/19) | D12: =VLOOKUP(LEFT(B12,FIND("(",B12)-2),Services!$C$5:$M$20,3,FALSE) -> 180 | F12: =VLOOKUP(LEFT($B12,FIND("(",$B12)-2),Services!$C$5:$M$20,2,FALSE) -> 2600 | J12: 6 | K12: 0 | N12: Family Profile/Preparation | O12: 38.65992509
A13: FY 22/23 | B13: =$N$7&" "&L3 -> Child Profile (FY 22/23) | D13: =VLOOKUP(LEFT($B13,FIND("(",$B13)-2),Services!$C$5:$M$20,11,FALSE) -> 90 | F13: =VLOOKUP(LEFT($B13,FIND("(",$B13)-2),Services!$C$5:$M$20,10,FALSE) -> 2100 | J13: 3 | K13: 0 | N13: Family Profile/Preparation Addendum | O13: 37.56203008
A14: FY 21/22 | B14: =$N$7&" "&L4 -> Child Profile (FY 21/22) | D14: =VLOOKUP(LEFT(B14,FIND("(",B14)-2),Services!$C$5:$M$20,9,FALSE) -> 90 | F14: =VLOOKUP(LEFT($B14,FIND("(",$B14)-2),Services!$C$5:$M$20,8,FALSE) -> 2100 | J14: 3 | K14: 0
A15: *FY 20/21 | B15: =$N$7&" "&L5 -> Child Profile (FY 20/21) | D15: =VLOOKUP(LEFT(B15,FIND("(",B15)-2),Services!$C$5:$M$20,7,FALSE) -> 90 | F15: =VLOOKUP(LEFT($B15,FIND("(",$B15)-2),Services!$C$5:$M$20,6,FALSE) -> 2100 | J15: 3 | K15: 0
A16: FY 19/20 | B16: =$N$7&" "&L6 -> Child Profile (FY 19/20) | D16: =VLOOKUP(LEFT(B16,FIND("(",B16)-2),Services!$C$5:$M$20,5,FALSE) -> 90 | F16: =VLOOKUP(LEFT($B16,FIND("(",$B16)-2),Services!$C$5:$M$20,4,FALSE) -> 1800 | J16: 3 | K16: 0
A17: FY 18/19 | B17: =$N$7&" "&L7 -> Child Profile (FY 18/19) | D17: =VLOOKUP(LEFT(B17,FIND("(",B17)-2),Services!$C$5:$M$20,3,FALSE) -> 90 | F17: =VLOOKUP(LEFT($B17,FIND("(",$B17)-2),Services!$C$5:$M$20,2,FALSE) -> 1900 | J17: 3 | K17: 0 | M17: Average Hours | N17: Worker Hours | O17: Prop Sch | P17: Schedule | Q17: =N5 -> Adoption Finalization Extension | S17: Worker
A18: FY 22/23 | B18: =$N$8&" "&L3 -> Child Profile Addendum (FY 22/23) | D18: =VLOOKUP(LEFT($B18,FIND("(",$B18)-2),Services!$C$5:$M$20,11,FALSE) -> 90 | F18: =VLOOKUP(LEFT($B18,FIND("(",$B18)-2),Services!$C$5:$M$20,10,FALSE) -> 1600 | J18: 3 | K18: 0 | M18: 0 | N18: 0 | O18: 0 | P18: 0 | Q18: =N6 -> Child Preparation | S18: Consultant
A19: FY 21/22 | B19: =N8&" "&L4 -> Child Profile Addendum (FY 21/22) | D19: =VLOOKUP(LEFT(B19,FIND("(",B19)-2),Services!$C$5:$M$20,9,FALSE) -> 90 | F19: =VLOOKUP(LEFT($B19,FIND("(",$B19)-2),Services!$C$5:$M$20,8,FALSE) -> 1600 | J19: 3 | K19: 0 | N19: PT | O19: FT | Q19: Child Profile
A20: *FY 20/21 | B20: =N8&" "&L5 -> Child Profile Addendum (FY 20/21) | D20: =VLOOKUP(LEFT(B20,FIND("(",B20)-2),Services!$C$5:$M$20,7,FALSE) -> 90 | F20: =VLOOKUP(LEFT($B20,FIND("(",$B20)-2),Services!$C$5:$M$20,6,FALSE) -> 1350 | J20: 3 | K20: 0 | M20: Weeks/Year | O20: 52 | Q20: Child Profile Addendum
A21: FY 19/20 | B21: =N8&" "&L6 -> Child Profile Addendum (FY 19/20) | D21: =VLOOKUP(LEFT(B21,FIND("(",B21)-2),Services!$C$5:$M$20,5,FALSE) -> 90 | F21: =VLOOKUP(LEFT($B21,FIND("(",$B21)-2),Services!$C$5:$M$20,4,FALSE) -> 500 | J21: 3 | K21: 0 | M21: Days/Week | O21: 40 | Q21: Child Specific Recruitment
A22: FY 18/19 | B22: =N8&" "&L7 -> Child Profile Addendum (FY 18/19) | D22: =VLOOKUP(LEFT(B22,FIND("(",B22)-2),Services!$C$5:$M$20,3,FALSE) -> 90 | F22: =VLOOKUP(LEFT($B22,FIND("(",$B22)-2),Services!$C$5:$M$20,2,FALSE) -> 500 | J22: 3 | K22: 0 | M22: Less PTO days/year | O22: 10 | Q22: Finalization
A23: FY 22/23 | B23: =$N$9&" "&L3 -> Child Specific Recruitment (FY 22/23) | D23: =VLOOKUP(LEFT($B23,FIND("(",$B23)-2),Services!$C$5:$M$20,11,FALSE) -> 180 | F23: =VLOOKUP(LEFT($B23,FIND("(",$B23)-2),Services!$C$5:$M$20,10,FALSE) -> 2800 | J23: 6 | K23: 0 | M23: Less NPH hrs/week | O23: 10 | Q23: Placement
A24: FY 21/22 | B24: =$N$9&" "&L4 -> Child Specific Recruitment (FY 21/22) | D24: =VLOOKUP(LEFT(B24,FIND("(",B24)-2),Services!$C$5:$M$20,9,FALSE) -> 180 | F24: =VLOOKUP(LEFT($B24,FIND("(",$B24)-2),Services!$C$5:$M$20,8,FALSE) -> 2800 | J24: 6 | K24: 0 | M24: Total Available Hours | O24: 1520 | Q24: Family Profile/Preparation
A25: *FY 20/21 | B25: =$N$9&" "&L5 -> Child Specific Recruitment (FY 20/21) | D25: =VLOOKUP(LEFT(B25,FIND("(",B25)-2),Services!$C$5:$M$20,7,FALSE) -> 180 | F25: =VLOOKUP(LEFT($B25,FIND("(",$B25)-2),Services!$C$5:$M$20,6,FALSE) -> 2800 | J25: 6 | K25: 0 | Q25: Family Profile/Preparation Addendum
A26: FY 19/20 | B26: =$N$9&" "&L6 -> Child Specific Recruitment (FY 19/20) | D26: =VLOOKUP(LEFT(B26,FIND("(",B26)-2),Services!$C$5:$M$20,5,FALSE) -> 180 | F26: =VLOOKUP(LEFT($B26,FIND("(",$B26)-2),Services!$C$5:$M$20,4,FALSE) -> 3150 | J26: 6 | K26: 0 | Q26: =Q5 -> Post-permanency Advocacy/Case Management
A27: FY 18/19 | B27: =$N$9&" "&L7 -> Child Specific Recruitment (FY 18/19) | D27: =VLOOKUP(LEFT(B27,FIND("(",B27)-2),Services!$C$5:$M$20,3,FALSE) -> 180 | F27: =VLOOKUP(LEFT($B27,FIND("(",$B27)-2),Services!$C$5:$M$20,2,FALSE) -> 1850 | J27: 6 | K27: 0 | Q27: =Q6 -> Post-permanency Advocacy/Assessment
A28: FY 22/23 | B28: =$N$10&" "&L3 -> Finalization (FY 22/23) | D28: =VLOOKUP(LEFT($B28,FIND("(",$B28)-2),Services!$C$5:$M$20,11,FALSE) -> 240 | F28: =VLOOKUP(LEFT($B28,FIND("(",$B28)-2),Services!$C$5:$M$20,10,FALSE) -> 2400 | J28: 8 | K28: 0 | Q28: Post-permanency: Respite
A29: FY 21/22 | B29: =$N$10&" "&L4 -> Finalization (FY 21/22) | D29: =VLOOKUP(LEFT(B29,FIND("(",B29)-2),Services!$C$5:$M$20,9,FALSE) -> 240 | F29: =VLOOKUP(LEFT($B29,FIND("(",$B29)-2),Services!$C$5:$M$20,8,FALSE) -> 2400 | J29: 8 | K29: 0 | Q29: Post-permanency: Support Group
A30: *FY 20/21 | B30: Finalization (FY 20/21) | D30: =VLOOKUP(LEFT(B30,FIND("(",B30)-2),Services!$C$5:$M$20,7,FALSE) -> 240 | F30: =VLOOKUP(LEFT($B30,FIND("(",$B30)-2),Services!$C$5:$M$20,6,FALSE) -> 2250 | J30: 8 | K30: 0 | M30: Part Time
A31: FY 19/20 | B31: Finalization (FY 19/20) | D31: =VLOOKUP(LEFT(B31,FIND("(",B31)-2),Services!$C$5:$M$20,5,FALSE) -> 240 | F31: =VLOOKUP(LEFT($B31,FIND("(",$B31)-2),Services!$C$5:$M$20,4,FALSE) -> 2950 | J31: 8 | K31: 0
A32: FY 18/19 | B32: Finalization (FY 18/19) | D32: =VLOOKUP(LEFT(B32,FIND("(",B32)-2),Services!$C$5:$M$20,3,FALSE) -> 240 | F32: =VLOOKUP(LEFT($B32,FIND("(",$B32)-2),Services!$C$5:$M$20,2,FALSE) -> 3200 | J32: 8 | K32: 0
A33: FY 22/23 | B33: =$N$11&" "&L3 -> Placement (FY 22/23) | D33: =VLOOKUP(LEFT($B33,FIND("(",$B33)-2),Services!$C$5:$M$20,11,FALSE) -> n/a | F33: =VLOOKUP(LEFT($B33,FIND("(",$B33)-2),Services!$C$5:$M$20,10,FALSE) -> 2300 | J33: n/a | K33: n/a
A34: FY 21/22 | B34: =$N$11&" "&L4 -> Placement (FY 21/22) | D34: =VLOOKUP(LEFT(B34,FIND("(",B34)-2),Services!$C$5:$M$20,9,FALSE) -> n/a | F34: =VLOOKUP(LEFT($B34,FIND("(",$B34)-2),Services!$C$5:$M$20,8,FALSE) -> 2300 | J34: n/a | K34: n/a
A35: *FY 20/21 | B35: Placement (FY 20/21) | D35: =VLOOKUP(LEFT(B35,FIND("(",B35)-2),Services!$C$5:$M$20,7,FALSE) -> n/a | F35: =VLOOKUP(LEFT($B35,FIND("(",$B35)-2),Services!$C$5:$M$20,6,FALSE) -> 1950 | J35: n/a | K35: n/a
A36: FY 19/20 | B36: Placement (FY 19/20) | D36: =VLOOKUP(LEFT(B36,FIND("(",B36)-2),Services!$C$5:$M$20,5,FALSE) -> n/a | F36: =VLOOKUP(LEFT($B36,FIND("(",$B36)-2),Services!$C$5:$M$20,4,FALSE) -> 2700 | J36: n/a | K36: n/a
A37: FY 18/19 | B37: Placement (FY 18/19) | D37: =VLOOKUP(LEFT(B37,FIND("(",B37)-2),Services!$C$5:$M$20,3,FALSE) -> n/a | F37: =VLOOKUP(LEFT($B37,FIND("(",$B37)-2),Services!$C$5:$M$20,2,FALSE) -> 2700 | J37: n/a | K37: n/a
A38: FY 22/23 | B38: =$N$12&" "&L3 -> Family Profile/Preparation (FY 22/23) | D38: =VLOOKUP(LEFT($B38,FIND("(",$B38)-2),Services!$C$5:$M$20,11,FALSE) -> 120 | F38: =VLOOKUP(LEFT($B38,FIND("(",$B38)-2),Services!$C$5:$M$20,10,FALSE) -> 2950 | J38: 4 | K38: 0
A39: FY 21/22 | B39: =$N$12&" "&L4 -> Family Profile/Preparation (FY 21/22) | D39: =VLOOKUP(LEFT(B39,FIND("(",B39)-2),Services!$C$5:$M$20,9,FALSE) -> 120 | F39: =VLOOKUP(LEFT($B39,FIND("(",$B39)-2),Services!$C$5:$M$20,8,FALSE) -> 2950 | J39: 4 | K39: 0
A40: *FY 20/21 | B40: Family Profile/Preparation (FY 20/21) | D40: =VLOOKUP(LEFT(B40,FIND("(",B40)-2),Services!$C$5:$M$20,7,FALSE) -> 120 | F40: =VLOOKUP(LEFT($B40,FIND("(",$B40)-2),Services!$C$5:$M$20,6,FALSE) -> 2700 | J40: 4 | K40: 0
A41: FY 19/20 | B41: Family Profile/Preparation (FY 19/20) | D41: =VLOOKUP(LEFT(B41,FIND("(",B41)-2),Services!$C$5:$M$20,5,FALSE) -> 120 | F41: =VLOOKUP(LEFT($B41,FIND("(",$B41)-2),Services!$C$5:$M$20,4,FALSE) -> 2400 | J41: 4 | K41: 0
A42: FY 18/19 | B42: Family Profile/Preparation (FY 18/19) | D42: =VLOOKUP(LEFT(B42,FIND("(",B42)-2),Services!$C$5:$M$20,3,FALSE) -> 120 | F42: =VLOOKUP(LEFT($B42,FIND("(",$B42)-2),Services!$C$5:$M$20,2,FALSE) -> 2800 | J42: 4 | K42: 0
A43: FY 22/23 | B43: =$N$13&" "&L3 -> Family Profile/Preparation Addendum (FY 22/23) | D43: =VLOOKUP(LEFT($B43,FIND("(",$B43)-2),Services!$C$5:$M$20,11,FALSE) -> 120 | F43: =VLOOKUP(LEFT($B43,FIND("(",$B43)-2),Services!$C$5:$M$20,10,FALSE) -> 1650 | J43: 4 | K43: 0
A44: FY 21/22 | B44: =$N$13&" "&L4 -> Family Profile/Preparation Addendum (FY 21/22) | D44: =VLOOKUP(LEFT(B44,FIND("(",B44)-2),Services!$C$5:$M$20,9,FALSE) -> 120 | F44: =VLOOKUP(LEFT($B44,FIND("(",$B44)-2),Services!$C$5:$M$20,8,FALSE) -> 1650 | J44: 4 | K44: 0
A45: *FY 20/21 | B45: Family Profile/Preparation Addendum (FY 20/21) | D45: =VLOOKUP(LEFT(B45,FIND("(",B45)-2),Services!$C$5:$M$20,7,FALSE) -> 120 | F45: =VLOOKUP(LEFT($B45,FIND("(",$B45)-2),Services!$C$5:$M$20,6,FALSE) -> 1450 | J45: 4 | K45: 0
A46: FY 19/20 | B46: Family Profile/Preparation Addendum (FY 19/20) | D46: =VLOOKUP(LEFT(B46,FIND("(",B46)-2),Services!$C$5:$M$20,5,FALSE) -> 120 | F46: =VLOOKUP(LEFT($B46,FIND("(",$B46)-2),Services!$C$5:$M$20,4,FALSE) -> 500 | J46: 4 | K46: 0
A47: FY 18/19 | B47: Family Profile/Preparation Addendum (FY 18/19) | D47: =VLOOKUP(LEFT(B47,FIND("(",B47)-2),Services!$C$5:$M$20,3,FALSE) -> 120 | F47: =VLOOKUP(LEFT($B47,FIND("(",$B47)-2),Services!$C$5:$M$20,2,FALSE) -> 500 | J47: 4 | K47: 0
A48: FY 22/23 | B48: =$Q$5&" "&L3 -> Post-permanency Advocacy/Case Management (FY 22/23) | D48: =VLOOKUP(LEFT($B48,FIND("(",$B48)-2),Services!$C$5:$M$20,11,FALSE) -> 30 | F48: =VLOOKUP(LEFT($B48,FIND("(",$B48)-2),Services!$C$5:$M$20,10,FALSE) -> 500 | J48: 1 | K48: 0
A49: FY 21/22 | B49: =$Q$5&" "&L4 -> Post-permanency Advocacy/Case Management (FY 21/22) | D49: =VLOOKUP(LEFT(B49,FIND("(",B49)-2),Services!$C$5:$M$20,9,FALSE) -> 30 | F49: =VLOOKUP(LEFT($B49,FIND("(",$B49)-2),Services!$C$5:$M$20,8,FALSE) -> 500 | J49: 1 | K49: 0
A50: *FY 20/21 | B50: Post-permanency Advocacy/Case Management (FY 20/21) | D50: =VLOOKUP(LEFT(B50,FIND("(",B50)-2),Services!$C$5:$M$20,7,FALSE) -> 30 | F50: =VLOOKUP(LEFT($B50,FIND("(",$B50)-2),Services!$C$5:$M$20,6,FALSE) -> 500 | J50: 1 | K50: 0
A51: FY 19/20 | B51: Post-permanency Advocacy/Case Management (FY 19/20) | D51: =VLOOKUP(LEFT(B51,FIND("(",B51)-2),Services!$C$5:$M$20,5,FALSE) -> 30 | F51: =VLOOKUP(LEFT($B51,FIND("(",$B51)-2),Services!$C$5:$M$20,4,FALSE) -> 500 | J51: 1 | K51: 0
A52: FY 18/19 | B52: Post-permanency Advocacy/Case Management (FY 18/19) | D52: =VLOOKUP(LEFT(B52,FIND("(",B52)-2),Services!$C$5:$M$20,3,FALSE) -> 30 | F52: =VLOOKUP(LEFT($B52,FIND("(",$B52)-2),Services!$C$5:$M$20,2,FALSE) -> 500 | J52: 1 | K52: 0
A53: FY 22/23 | B53: =$Q$6&" "&L3 -> Post-permanency Advocacy/Assessment (FY 22/23) | D53: =VLOOKUP(LEFT($B53,FIND("(",$B53)-2),Services!$C$5:$M$20,11,FALSE) -> 30 | F53: =VLOOKUP(LEFT($B53,FIND("(",$B53)-2),Services!$C$5:$M$20,10,FALSE) -> 500 | J53: 1 | K53: 0
A54: FY 21/22 | B54: =$Q$6&" "&L4 -> Post-permanency Advocacy/Assessment (FY 21/22) | D54: =VLOOKUP(LEFT(B54,FIND("(",B54)-2),Services!$C$5:$M$20,9,FALSE) -> 30 | F54: =VLOOKUP(LEFT($B54,FIND("(",$B54)-2),Services!$C$5:$M$20,8,FALSE) -> 500 | J54: 1 | K54: 0
A55: *FY 20/21 | B55: Post-permanency Advocacy/Assessment (FY 20/21) | D55: =VLOOKUP(LEFT(B55,FIND("(",B55)-2),Services!$C$5:$M$20,7,FALSE) -> 30 | F55: =VLOOKUP(LEFT($B55,FIND("(",$B55)-2),Services!$C$5:$M$20,6,FALSE) -> 500 | J55: 1 | K55: 0
A56: FY 19/20 | B56: Post-permanency Advocacy/Assessment (FY 19/20) | D56: =VLOOKUP(LEFT(B56,FIND("(",B56)-2),Services!$C$5:$M$20,5,FALSE) -> 30 | F56: =VLOOKUP(LEFT($B56,FIND("(",$B56)-2),Services!$C$5:$M$20,4,FALSE) -> 500 | J56: 1 | K56: 0
A57: FY 18/19 | B57: Post-permanency Advocacy/Assessment (FY 18/19) | D57: =VLOOKUP(LEFT(B57,FIND("(",B57)-2),Services!$C$5:$M$20,3,FALSE) -> 30 | F57: =VLOOKUP(LEFT($B57,FIND("(",$B57)-2),Services!$C$5:$M$20,2,FALSE) -> 500 | J57: 1 | K57: 0
A58: FY 22/23 | B58: =$Q$8&" "&L3 -> Post-permanency: Support Group (FY 22/23) | D58: =VLOOKUP(LEFT($B58,FIND("(",$B58)-2),Services!$C$5:$M$20,11,FALSE) -> 90 | F58: =VLOOKUP(LEFT($B58,FIND("(",$B58)-2),Services!$C$5:$M$20,10,FALSE) -> 250 | J58: 3 | K58: 0
A59: FY 21/22 | B59: =$Q$8&" "&L4 -> Post-permanency: Support Group (FY 21/22) | D59: =VLOOKUP(LEFT(B59,FIND("(",B59)-2),Services!$C$5:$M$20,9,FALSE) -> 90 | F59: =VLOOKUP(LEFT($B59,FIND("(",$B59)-2),Services!$C$5:$M$20,8,FALSE) -> 250 | J59: 3 | K59: 0
A60: *FY 20/21 | B60: Post-permanency: Support Group (FY 20/21) | D60: =VLOOKUP(LEFT(B60,FIND("(",B60)-2),Services!$C$5:$M$20,7,FALSE) -> 90 | F60: =VLOOKUP(LEFT($B60,FIND("(",$B60)-2),Services!$C$5:$M$20,6,FALSE) -> 250 | J60: 3 | K60: 0
A61: FY 19/20 | B61: Post-permanency: Support Group (FY 19/20) | D61: =VLOOKUP(LEFT(B61,FIND("(",B61)-2),Services!$C$5:$M$20,5,FALSE) -> 90 | F61: =VLOOKUP(LEFT($B61,FIND("(",$B61)-2),Services!$C$5:$M$20,4,FALSE) -> 250 | J61: 3 | K61: 0
A62: FY 18/19 | B62: Post-permanency: Support Group (FY 18/19) | D62: =VLOOKUP(LEFT(B62,FIND("(",B62)-2),Services!$C$5:$M$20,3,FALSE) -> 90 | F62: =VLOOKUP(LEFT($B62,FIND("(",$B62)-2),Services!$C$5:$M$20,2,FALSE) -> 250 | J62: 3 | K62: 0
A63: FY 22/23 | B63: =$Q$7&" "&L3 -> Post-permanency: Respite (FY 22/23) | D63: =VLOOKUP(LEFT($B63,FIND("(",$B63)-2),Services!$C$5:$M$20,11,FALSE) -> 30 | F63: =VLOOKUP(LEFT($B63,FIND("(",$B63)-2),Services!$C$5:$M$20,10,FALSE) -> 300 | J63: 1 | K63: 0
A64: FY 21/22 | B64: =$Q$7&" "&L4 -> Post-permanency: Respite (FY 21/22) | D64: =VLOOKUP(LEFT(B64,FIND("(",B64)-2),Services!$C$5:$M$20,9,FALSE) -> 30 | F64: =VLOOKUP(LEFT($B64,FIND("(",$B64)-2),Services!$C$5:$M$20,8,FALSE) -> 300 | J64: 1 | K64: 0
A65: *FY 20/21 | B65: Post-permanency: Respite (FY 20/21) | D65: =VLOOKUP(LEFT(B65,FIND("(",B65)-2),Services!$C$5:$M$20,7,FALSE) -> 30 | F65: =VLOOKUP(LEFT($B65,FIND("(",$B65)-2),Services!$C$5:$M$20,6,FALSE) -> 300 | J65: 1 | K65: 0
A66: FY 19/20 | B66: Post-permanency: Respite (FY 19/20) | D66: =VLOOKUP(LEFT(B66,FIND("(",B66)-2),Services!$C$5:$M$20,5,FALSE) -> 30 | F66: =VLOOKUP(LEFT($B66,FIND("(",$B66)-2),Services!$C$5:$M$20,4,FALSE) -> 300 | J66: 1 | K66: 0
A67: FY 18/19 | B67: =$Q$7&" "&L7 -> Post-permanency: Respite (FY 18/19) | D67: =VLOOKUP(LEFT(B67,FIND("(",B67)-2),Services!$C$5:$M$20,3,FALSE) -> 30 | F67: =VLOOKUP(LEFT($B67,FIND("(",$B67)-2),Services!$C$5:$M$20,2,FALSE) -> 300 | J67: =IF(D67="n/a","n/a",D67/30) -> 1 | K67: 0
